Workbook

Sheet INGRESSOS
B1: CAPÍTOL I.- IMPOSTOS DIRECTES
A3: CONCEPTE | B3: DESCRIPCIÓ | C3: 2018 | D3: 2017 | E3: 2016 | F3: DIFERÈNCIA | G3: INCREMENT
A4: 112.00 | B4: IMPOST S/ BENS IMMOBLES - RUSTICA | C4: 14,953.00 | D4: 10,822.00 | E4: 11,000.00 | F4: =SUM(C4-D4) -> 4,131.00 | G4: =SUM(F4/D4)*100 -> 38.17
A5: 113.00 | B5: IMPOST S/ BENS IMMOBLES - URBANS | C5: 3,137,445.00 | D5: 3,079,933.00 | E5: 3,058,196.00 | F5: =SUM(C5-D5) -> 57,512.00 | G5: =SUM(F5/D5)*100 -> 1.87
A6: 115.00 | B6: IMPOST S/VEHICLES DE TRACCIÓ MECÀNICA - PADRÓ- | C6: 490,157.00 | D6: 483,069.00 | E6: 481,866.00 | F6: 7,088.00 | G6: 1.47
A7: 116.00 | B7: IMPOST S/INC.VALOR TERRENYS NATURALESA URBANA | C7: 874,500.00 | D7: 825,000.00 | E7: 784,682.00 | F7: 49,500.00 | G7: 6.00
A8: 130.00 | B8: IMPOST S/ACTIVITATS ECONÓMIQUES | C8: 53,655.00 | D8: 53,655.00 | E8: 47,655.00 | F8: 0.00 | G8: 0.00
B9: TOTAL CAPÍTOL I | C9: =SUBTOTAL(109,Tabla10[2018]) -> 4,570,710.00 | D9: =SUM(Tabla10[2017]) -> 4,452,479.00 | E9: =SUM(Tabla10[2016]) -> 4,383,399.00 | F9: =SUM(Tabla10[DIFERÈNCIA]) -> 118,231.00 | G9: =SUM(F9/D9)*100 -> 2.66
B12: CAPÍTOL II.- IMPOSTOS INDIRECTES
A14: CONCEPTE | B14: DESCRIPCIÓ | C14: 2018 | D14: 2017 | E14: 2016 | F14: DIFERÈNCIA | G14: INCREMENT
A15: 290.00 | B15: IMPOST S/CONSTRUCCIONS,INSTAL.LAC.OBRES | C15: 214,000.00 | D15: 160,000.00 | E15: 83,000.00 | F15: =SUM(C15-D15) -> 54,000.00 | G15: =SUM(F15/D15)*100 -> 33.75
B16: TOTAL CAPÍTOL II | C16: =SUBTOTAL(109,Tabla11[2018]) -> 214,000.00 | D16: =SUM(Tabla11[2017]) -> 160,000.00 | E16: =SUM(Tabla11[2016]) -> 83,000.00 | F16: =SUM(Tabla11[DIFERÈNCIA]) -> 54,000.00 | G16: =SUM(F16/D16)*100 -> 33.75
B18: CAPÍTOL III.- TAXES I ALTRES INGRESSOS
A20: CONCEPTE | B20: DESCRIPCIÓ | C20: 2018 | D20: 2017 | E20: 2016 | F20: DIFERÈNCIA | G20: INCREMENT
A21: 301.00 | B21: TAXA CONSERVACIÓ CLAVEGUERAM | C21: 12,000.00 | D21: 12,000.00 | E21: 12,000.00 | F21: =SUM(C21-D21) -> 0.00 | G21: =SUM(F21/D21)*100 -> 0.00
A22: 302.00 | B22: TAXA RECOLLIDA ESCOMBRARIES DOMICILIARIES | C22: 302,315.00 | D22: 291,150.00 | E22: 290,125.00 | F22: =SUM(C22-D22) -> 11,165.00 | G22: =SUM(F22/D22)*100 -> 3.83
A23: 302.01 | B23: TAXA RECOLLIDA ESCOMBRARIES COMERCIALS | C23: 28,667.00 | D23: 25,600.00 | E23: 26,916.00 | F23: 3,067.00 | G23: 11.98
A24: 311.02 | B24: TAXA PRESTACIÓ DE SERVEIS D'AJUT A LA LLAR | C24: 11,400.00 | D24: 11,400.00 | E24: 11,400.00 | F24: 0.00 | G24: 0.00
A25: 312.00 | B25: TAXA SERVEIS ESCOLA MUNICIPAL DE MÚSICA I DANSA | C25: 129,626.00 | D25: 95,500.00 | E25: 101,500.00 | F25: 34,126.00 | G25: 35.73
A26: 313.01 | B26: TAXA US PISCINES | C26: 110,000.00 | D26: 93,000.00 | E26: 93,000.00 | F26: 17,000.00 | G26: 18.28
A27: 313.02 | B27: TAXA US ZONA POLIESPORTIVA | C27: 2,000.00 | D27: 2,000.00 | E27: 3,000.00 | F27: 0.00 | G27: 0.00
A28: 319.00 | B28: TAXA CONSERVACIÓ CEMENTIRI | C28: 14,000.00 | D28: 12,000.00 | E28: 14,000.00 | F28: 2,000.00 | G28: 16.67
A29: 321.00 | B29: TAXA LLICÈNCIES URBANÍSTIQUES | C29: 67,320.00 | D29: 51,000.00 | E29: 25,000.00 | F29: 16,320.00 | G29: 32.00
A30: 325.00 | B30: TAXA EXPEDICIÓ DOCUMENTS | C30: 4,000.00 | D30: 4,000.00 | E30: 2,500.00 | F30: 0.00 | G30: 0.00
A31: 326.00 | B31: TAXA RECOLLIDA VEHICLES | C31: 4,000.00 | D31: 3,000.00 | E31: 2,600.00 | F31: 1,000.00 | G31: 33.33
A32: 329.01 | B32: TAXA LLICENCIA ESTABLIMENTS | C32: 1,000.00 | D32: 1,000.00 | E32: 1,000.00 | F32: 0.00 | G32: 0.00
A33: 331.00 | B33: TAXA ENTRADES VEHICLES | C33: 68,690.00 | D33: 67,675.00 | E33: 69,500.00 | F33: 1,015.00 | G33: 1.50
A34: 332.00 | B34: TAXA PER UTILITZ.PRIVATIVA O APROFITAMENT ESPEC. | C34: 105,800.00 | D34: 105,800.00 | E34: 105,800.00 | F34: 0.00 | G34: 0.00
A35: 333.00 | B35: TAXA UTILITZ.PRIVATIV.EMPRESES EXPLOT.SERV.TELECOMUNI | C35: 3,000.00 | D35: 3,000.00 | E35: 3,000.00 | F35: 0.00 | G35: 0.00
A36: 338.00 | B36: TAXA COMPENSACIÓ TELEFÓNICA | C36: 39,872.00 | D36: 24,000.00 | E36: 21,154.00 | F36: 15,872.00 | G36: 66.13
A37: 339.00 | B37: TAXA MERCATS | C37: 5,100.00 | D37: 5,100.00 | E37: 4,800.00 | F37: 0.00 | G37: 0.00
A38: 342.00 | B38: PREU PUBLIC ESCOLA TIMÓ | C38: 300.00 | D38: 300.00 | E38: 100.00 | F38: 0.00 | G38: 0.00
A39: 342.01 | B39: PREU PÚBLIC ACTIVITATS FORMACIÓ ARTÍSTICA | C39: 1,000.00 | D39: 1,000.00 | E39: 1,000.00 | F39: 0.00 | G39: 0.00
A40: 343.00 | B40: PREU PÚBLIC ESCOLA BRESSOL MUNICIPAL | C40: 409,245.00 | D40: 458,780.00 | E40: 472,083.00 | F40: -49,535.00 | G40: -10.80
A41: 343.01 | B41: PREU PÚBLIC SERVEI POLIESPORTIU. | C41: 3,500.00 | D41: 2,500.00 | E41: 1,000.00 | F41: 1,000.00 | G41: 40.00
A42: 343.02 | B42: PREU PUBLIC PER ACTIVITATS CULTURALS I ESPORTIVES | C42: 4,000.00 | D42: 4,000.00 | E42: 4,000.00 | F42: 0.00 | G42: 0.00
A43: 349.03 | B43: PREU PUBLIC NETEJA SOLARS. | C43: 10,500.00 | D43: 8,000.00 | E43: 8,000.00 | F43: =SUM(C43-D43) -> 2,500.00 | G43: 31.25
A44: 349.04 | B44: PREU PUBLIC RECOLLIDA VOLUMINOSOS. | C44: 200.00 | D44: 200.00 | E44: 200.00 | F44: 0.00 | G44: 0.00
A45: 349.05 | B45: PREU PÚBLIC PER UTILITZACIO SALES MUNICIPALS | C45: 4,000.00 | D45: 4,000.00 | E45: 4,000.00 | F45: 0.00 | G45: 0.00
A46: 349.06 | B46: PREU PÚBLIC PER UTILITZACIÓ DEIXALLERIA | C46: 19,500.00 | D46: 12,000.00 | E46: 12,000.00 | F46: 7,500.00 | G46: 62.50
A47: 361.00 | B47: VENDA EFECTES INUTILS | C47: 100.00 | D47: 100.00 | E47: 100.00 | F47: 0.00 | G47: 0.00
A48: 389.00 | B48: REINTEGRAMENTS D'OPERACIONS CORRENTS | C48: 1,000.00 | D48: 1,000.00 | E48: 1,000.00 | F48: 0.00 | G48: 0.00
A49: 391.10 | B49: SANCIONS TRIBUTÀRIES. | C49: 8,000.00 | D49: 7,000.00 | E49: 7,000.00 | F49: 1,000.00 | G49: 14.29
A50: 391.20 | B50: MULTES INFRACCIONS DE TRÀNSIT | C50: 75,000.00 | D50: 66,361.00 | E50: 63,000.00 | F50: 8,639.00 | G50: 13.02
A51: 392.11 | B51: RECÀRREC CONSTRENYIMENT | C51: 35,000.00 | D51: 33,000.00 | E51: 33,000.00 | F51: 2,000.00 | G51: 6.06
A52: 393.00 | B52: INTERESSOS DE DEMORA | C52: 16,000.00 | D52: 16,000.00 | E52: 13,000.00 | F52: 0.00 | G52: 0.00
A53: 399.00 | B53: ALTRES INGRESSOS (venda material reciclat i altres) | C53: 136,200.00 | D53: 136,200.00 | E53: 115,910.00 | F53: 0.00 | G53: 0.00
A54: 399.01 | B54: INGRESSOS GENERALITAT RESIDÈNCIA D'AVIS | C54: 500,000.00 | D54: 545,000.00 | E54: 491,600.00 | F54: -45,000.00 | G54: -8.26
A55: 399.02 | B55: ALTRES INGRESSOS (exec.subsid.) | C55: 10,000.00 | D55: 10,000.00 | E55: 10,000.00 | F55: 0.00 | G55: 0.00
B56: TOTAL CAPÍTOL III | C56: =SUBTOTAL(109,Tabla12[2018]) -> 2,142,335.00 | D56: =SUM(Tabla12[2017]) -> 2,112,666.00 | E56: =SUM(Tabla12[2016]) -> 2,024,288.00 | F56: =SUM(Tabla12[DIFERÈNCIA]) -> 29,669.00 | G56: 1.40
B58: CAPÍTOL IV.- TRANSFERÈNCIES CORRENTS
A60: CONCEPTE | B60: DESCRIPCIÓ | C60: 2018 | D60: 2017 | E60: 2016 | F60: DIFERÈNCIA | G60: INCREMENT
A61: 420.00 | B61: PARTICIPACIÓ INGRESSOS DE L'ESTAT | C61: 1,582,697.00 | D61: 1,548,098.00 | E61: 1,499,533.00 | F61: =SUM(C61-D61) -> 34,599.00 | G61: =SUM(F61/D61)*100 -> 2.23
A62: 420.90 | B62: ALTRES TRANSFERÈNCIES DE L'ESTAT | C62: 1,000.00 | D62: 1,000.00 | E62: 1,000.00 | F62: =SUM(C62-D62) -> 0.00 | G62: 0.00
A63: 450.00 | B63: FONS CATALÀ DE COOPERACIÓ | C63: 122,085.00 | D63: 122,085.00 | E63: 122,085.00 | F63: 0.00 | G63: 0.00
A64: 450.02 | B64: SUBVENCIÓ GENERALITAT. | C64: 53,400.00 | D64: 53,400.00 | E64: 8,400.00 | F64: 0.00 | G64: 0.00
A65: 450.03 | B65: NOVES INICIATIVES GENERALITAT | C65: 1,000.00 | D65: 1,000.00 | E65: 1,000.00 | F65: 0.00 | G65: 0.00
A66: 450.07 | B66: EDUCACIO AMBIENTAL I COMUNICACIO AMBIENTAL GENERALIT | C66: 1,000.00 | D66: 1,000.00 | E66: 1,000.00 | F66: 0.00 | G66: 0.00
A67: 450.30 | B67: SUBVENCIÓ GENERALITAT ESCOLA BRESSOL. | C67: 104,125.00 | D67: 104,125.00 | E67: 104,125.00 | F67: 0.00 | G67: 0.00
A68: 450.50 | B68: SUBVENCIO SERVEI OCUPACIÓ (PER AMPLIAR) | C68: 100.00 | D68: 100.00 | E68: 100.00 | F68: 0.00 | G68: 0.00
A69: 450.80 | B69: SUBVENCIÓ GENERALITAT (ESCOLA MUSICA/DANSA) | C69: 19,000.00 | D69: 19,000.00 | E69: 19,000.00 | F69: 0.00 | G69: 0.00
A70: 461.00 | B70: SUBVENCIÓ DIPUTACIÓ DE BARCELONA | C70: 170,000.00 | D70: 164,750.00 | E70: 144,750.00 | F70: 5,250.00 | G70: 3.19
A71: 461.01 | B71: SUBVENCIÓ CONSELL COMARCAL | C71: 4,800.00 | D71: 4,800.00 | E71: 3,800.00 | F71: 0.00 | G71: 0.00
A72: 461.02 | B72: CONSELL COMARCAL.- BEQUES MENJADOR | C72: 25,000.00 | D72: 25,000.00 | E72: 18,000.00 | F72: 0.00 | G72: 0.00
A73: 461.03 | B73: CONVENI U.B.A.S.P. TREBALLADORA FAMILIAR-SAD | C73: 69,900.00 | D73: 69,900.00 | E73: 69,900.00 | F73: 0.00 | G73: 0.00
A74: 461.04 | B74: APORTACIONS DIPUTACIÓ A PLANS OCUPACIONALS | C74: 100.00 | D74: 100.00 | E74: 100.00 | F74: 0.00 | G74: 0.00
A75: 464.00 | B75: SUBVENCIÓ ÀREA METROPOLITANA | C75: 1,000.00 | D75: 1,000.00 | E75: 1,000.00 | F75: 0.00 | G75: 0.00
A76: 464.01 | B76: APLICACIÓ A.M.B. PROGRAMA OPERACIONS VERTEBRADORES | C76: 181,780.00 | D76: 181,780.00 | E76: 218,183.00 | F76: 0.00 | G76: 0.00
A77: 464.02 | B77: ÀREA METROPOLITANA.-SUPORT POLÍTIQUES SOCIALS MCAPL | C77: 100.00 | D77: 100.00 | E77: 100.00 | F77: 0.00 | G77: 0.00
A78: 467.00 | B78: SUBVENCIONS I TRANSFERÈNCIES CONSORCIS | C78: 20,250.00 | D78: 20,250.00 | E78: 20,250.00 | F78: 0.00 | G78: 0.00
A79: 482.02 | B79: ALTRES APORTACIONS DE PARTICULARS. | C79: 1,000.00 | D79: 1,000.00 | E79: 1,000.00 | F79: 0.00 | G79: 0.00
A80: 482.03 | B80: PATROCINI I ALTRES INGRESSOS ATIPICS | C80: 6,500.00 | D80: 2,000.00 | E80: 4,000.00 | F80: 4,500.00 | G80: 225.00
B81: TOTAL CAPÍTOL IV | C81: =SUBTOTAL(109,Tabla13[2018]) -> 2,364,837.00 | D81: =SUM(Tabla13[2017]) -> 2,320,488.00 | E81: =SUM(Tabla13[2016]) -> 2,237,326.00 | F81: =SUM(Tabla13[DIFERÈNCIA]) -> 44349.00 | G81: 1.91
B83: CAPÍTOL V.- INGRESSOS PATRIMONIALS
A85: CONCEPTE | B85: DESCRIPCIÓ | C85: 2018 | D85: 2017 | E85: 2016 | F85: DIFERÈNCIA | G85: INCREMENT
A86: 520.00 | B86: INTERESSOS BANCARIS | C86: 500.00 | D86: 500.00 | E86: 500.00 | F86: =SUM(C86-D86) -> 0.00 | G86: =SUM(F86/D86)*100 -> 0.00
A87: 549.00 | B87: RENDES BENS IMMOBLES. | C87: 47,716.00 | D87: 44,000.00 | E87: 44,000.00 | F87: =SUM(C87-D87) -> 3,716.00 | G87: 8.45
A88: 559.00 | B88: CONCESSIONS ADMINISTRATIVES. | C88: 106,524.00 | D88: 103,300.00 | E88: 103,300.00 | F88: 3,224.00 | G88: 3.12
A89: 599.00 | B89: ALTRES INGRESSOS PATRIMONIALS | C89: 1,000.00 | D89: 1,000.00 | E89: 1,000.00 | F89: 0.00 | G89: 0.00
B90: TOTAL CAPÍTOL V | C90: =SUBTOTAL(109,Tabla14[2018]) -> 155,740.00 | D90: =SUM(Tabla14[2017]) -> 148,800.00 | E90: =SUM(Tabla14[2016]) -> 148,800.00 | F90: =SUM(Tabla14[DIFERÈNCIA]) -> 6940.00 | G90: 4.66
B92: CAPÍTOL VI.- ALIENACIÓ INVERSIONS
A94: CONCEPTE | B94: DESCRIPCIÓ | C94: 2018 | D94: 2017 | E94: 2016 | F94: DIFERÈNCIA | G94: INCREMENT
A95: 720.00 | B95: SUBVENCIÓ MINISTERIO ADEQUACIÓ NAU MASCARÒ | C95: 0.00 | D95: 0.00 | E95: 2,716.00 | F95: =SUM(C95-D95) -> 0.00 | G95: 0.00
A96: 750.50 | B96: TRANSFERÈNCIES GENERALITAT : PUOSC | C96: 0.00 | D96: 0.00 | E96: 0.00 | F96: =SUM(C96-D96) -> 0.00 | G96: 0.00
A97: 761.00 | B97: TRANSFERÈNCIES DIPUTACIÓ (ZONA VIANANTS) | C97: 241,533.00 | D97: 500,000.00 | E97: 30,000.00 | F97: -258,467.00 | G97: 0.00
A98: 761.01 | B98: TRANSFERÈNCIES DIPUTACIÓ (CAMÍ CEMENTIRI) | C98: 0.00 | D98: 47,671.00 | E98: 0.00 | F98: -47,671.00 | G98: 0.00
A99: 764.00 | B99: APORTACIONS A.M.B. CARRIL-BICI | C99: 0.00 | D99: 60,000.00 | E99: 0.00 | F99: -60,000.00 | G99: 0.00
A100: 764.01 | B100: APORTACIONS A.M.B. ARRENJAMENT CARRERS | C100: 130,000.00 | D100: 130,000.00 | E100: 0.00 | F100: 0.00 | G100: 0.00
B101: TOTAL CAPÍTOL VII | C101: =SUBTOTAL(109,Tabla15[2018]) -> 371,533.00 | D101: =SUM(Tabla15[2017]) -> 737,671.00 | E101: =SUM(Tabla15[2016]) -> 32716.00 | F101: =SUM(Tabla15[DIFERÈNCIA]) -> -366,138.00 | G101: 49,63%
B103: TOTAL CAPÍTOL VII TRANSFERÈNCIES DE CAPITAL………………
A106: CONCEPTE | B106: DESCRIPCIÓ | C106: 2018 | D106: 2017 | E106: 2016 | F106: DIFERÈNCIA | G106: INCREMENT
A107: 830.00 | B107: PRÈSTECS A CURT TERMINI.- PERSONAL | C107: 15,000.00 | D107: 15,000.00 | E107: 15,000.00 | F107: =SUM(C107-D107) -> 0.00 | G107: 0.00
B108: TOTAL CAPÍTOL VIII | C108: =SUBTOTAL(109,C107) -> 15,000.00 | D108: =SUBTOTAL(109,D107) -> 15,000.00 | E108: =SUBTOTAL(109,E107) -> 15,000.00 | F108: 0.00 | G108: 0.00
B110: TOTAL CAPÍTOL VIII…ACTIUS FINANCERS…………………………
A112: CONCEPTE | B112: DESCRIPCIÓ | C112: 2018 | D112: 2017 | E112: 2016 | F112: DIFERÈNCIA | G112: INCREMENT
A113: 911.00 | B113: PRÉSTECS A LLARG TERMINI D'ENS DEL SECTOR PÚBLIC | C113: 115,000.00 | D113: 175,000.00 | E113: 175,000.00 | F113: =SUM(C113-D113) -> -60,000.00 | G113: 0.00
A114: 913.00 | B114: PRÉSTECS A LLARG TERMINI D'ENS FORA DEL SECTOR PÚBLIC | C114: 572,000.00 | D114: 75,000.00 | E114: 0.00 | F114: 497,000.00 | G114: 0.00
B115: TOTAL CAPÍTOL IX | C115: =SUBTOTAL(109,C113:C114) -> 687,000.00 | D115: =SUBTOTAL(109,D113:D114) -> 250,000.00 | E115: =SUBTOTAL(109,E113:E114) -> 175,000.00 | F115: =SUBTOTAL(109,F113:F114) -> 437,000.00 | G115: 174.80
B117: TOTAL CAPÍTOL IX…PASSIUS FINANCERS…………………………
B120: TOTAL PRESSUPOST D'INGRESSOS | C120: 10,521,155.00 | D120: 10,197,104.00 | E120: 9,124,000.00 | F120: 324,051.00 | G120: 3.18

Sheet DESPESES
A1: GRUP | B1: SUBCON | C1: CAPÍTOL | D1: CONCEPTE | E1: POLÍTIQUES | F1: PROGRAMA | G1: ANY | H1: IMPORT
A2: 110 | B2: 31000 | C2: INTERESSOS | D2: INTERESSOS PRÈSTECS VIGENTS | E2: 01. Deute públic | F2: 011. Deute públic | G2: 2018-esm | H2: 102,699.00
A3: 110 | B3: 31000 | C3: INTERESSOS | D3: INTERESSOS PRÈSTECS VIGENTS | E3: 01. Deute públic | F3: 011. Deute públic | G3: 2018 | H3: 102,699.00
A4: 110 | B4: 31000 | C4: INTERESSOS | D4: INTERESSOS PRÈSTECS VIGENTS | E4: 01. Deute públic | F4: 011. Deute públic | G4: 2016 | H4: 111,788.00
A5: 110 | B5: 31000 | C5: INTERESSOS | D5: INTERESSOS PRÈSTECS VIGENTS | E5: 01. Deute públic | F5: 011. Deute públic | G5: 2017 | H5: 102,813.00
A6: 110 | B6: 31001 | C6: INTERESSOS | D6: INTERESSOS OPERACIONS A CURT TERMINI | E6: 01. Deute públic | F6: 011. Deute públic | G6: 2018-esm | H6: 2,000.00
A7: 110 | B7: 31001 | C7: INTERESSOS | D7: INTERESSOS OPERACIONS A CURT TERMINI | E7: 01. Deute públic | F7: 011. Deute públic | G7: 2018 | H7: 2,000.00
A8: 110 | B8: 31001 | C8: INTERESSOS | D8: INTERESSOS OPERACIONS A CURT TERMINI | E8: 01. Deute públic | F8: 011. Deute públic | G8: 2016 | H8: 5,000.00
A9: 110 | B9: 31001 | C9: INTERESSOS | D9: INTERESSOS OPERACIONS A CURT TERMINI | E9: 01. Deute públic | F9: 011. Deute públic | G9: 2017 | H9: 2,000.00
A10: 110 | B10: 31100 | C10: INTERESSOS | D10: DESPESES FORMALITZACIÓ,CANCELACIÓ | E10: 01. Deute públic | F10: 011. Deute públic | G10: 2018-esm | H10: 1,000.00
A11: 110 | B11: 31100 | C11: INTERESSOS | D11: DESPESES FORMALITZACIÓ,CANCELACIÓ | E11: 01. Deute públic | F11: 011. Deute públic | G11: 2018 | H11: 1,000.00
A12: 110 | B12: 31100 | C12: INTERESSOS | D12: DESPESES FORMALITZACIÓ,CANCELACIÓ | E12: 01. Deute públic | F12: 011. Deute públic | G12: 2016 | H12: 2,000.00
A13: 110 | B13: 31100 | C13: INTERESSOS | D13: DESPESES FORMALITZACIÓ,CANCELACIÓ | E13: 01. Deute públic | F13: 011. Deute públic | G13: 2017 | H13: 1,000.00
A14: 110 | B14: 35200 | C14: INTERESSOS | D14: INTERESSOS DE DEMORA | E14: 01. Deute públic | F14: 011. Deute públic | G14: 2018-esm | H14: 2,000.00
A15: 110 | B15: 35200 | C15: INTERESSOS | D15: INTERESSOS DE DEMORA | E15: 01. Deute públic | F15: 011. Deute públic | G15: 2018 | H15: 2,000.00
A16: 110 | B16: 35200 | C16: INTERESSOS | D16: INTERESSOS DE DEMORA | E16: 01. Deute públic | F16: 011. Deute públic | G16: 2016 | H16: 4,000.00
A17: 110 | B17: 35200 | C17: INTERESSOS | D17: INTERESSOS DE DEMORA | E17: 01. Deute públic | F17: 011. Deute públic | G17: 2017 | H17: 2,000.00
A18: 110 | B18: 91100 | C18: PASSIUS FINANCERS | D18: QUOTES AMORTITZACIÓ PRÈSTES SECTOR PÚBLIC | E18: 01. Deute públic | F18: 011. Deute públic | G18: 2018-esm | H18: 45,000.00
A19: 110 | B19: 91100 | C19: PASSIUS FINANCERS | D19: QUOTES AMORTITZACIÓ PRÈSTES SECTOR PÚBLIC | E19: 01. Deute públic | F19: 011. Deute públic | G19: 2018 | H19: 45,000.00
A20: 110 | B20: 91100 | C20: PASSIUS FINANCERS | D20: QUOTES AMORTITZACIÓ PRÈSTES SECTOR PÚBLIC | E20: 01. Deute públic | F20: 011. Deute públic | G20: 2016 | H20: 45,000.00
A21: 110 | B21: 91100 | C21: PASSIUS FINANCERS | D21: QUOTES AMORTITZACIÓ PRÈSTES SECTOR PÚBLIC | E21: 01. Deute públic | F21: 011. Deute públic | G21: 2017 | H21: 45,000.00
A22: 110 | B22: 91300 | C22: PASSIUS FINANCERS | D22: QUOTES AMORTITZACIÓ PRESTEC FORA PÚBLIC | E22: 01. Deute públic | F22: 011. Deute públic | G22: 2018-esm | H22: 296,898.00
A23: 110 | B23: 91300 | C23: PASSIUS FINANCERS | D23: QUOTES AMORTITZACIÓ PRESTEC FORA PÚBLIC | E23: 01. Deute públic | F23: 011. Deute públic | G23: 2018 | H23: 296,898.00
A24: 110 | B24: 91300 | C24: PASSIUS FINANCERS | D24: QUOTES AMORTITZACIÓ PRESTEC FORA PÚBLIC | E24: 01. Deute públic | F24: 011. Deute públic | G24: 2016 | H24: 427,105.00
A25: 110 | B25: 91300 | C25: PASSIUS FINANCERS | D25: QUOTES AMORTITZACIÓ PRESTEC FORA PÚBLIC | E25: 01. Deute públic | F25: 011. Deute públic | G25: 2017 | H25: 404,823.00
A26: 110 | B26: 91301 | C26: PASSIUS FINANCERS | D26: AMORTITZACIÓ DEUTE REV., FCC | E26: 01. Deute públic | F26: 011. Deute públic | G26: 2018-esm | H26: 22,128.00
A27: 110 | B27: 91301 | C27: PASSIUS FINANCERS | D27: AMORTITZACIÓ DEUTE REV., FCC | E27: 01. Deute públic | F27: 011. Deute públic | G27: 2018 | H27: 22,128.00
A28: 110 | B28: 91301 | C28: PASSIUS FINANCERS | D28: AMORTITZACIÓ DEUTE REV., FCC | E28: 01. Deute públic | F28: 011. Deute públic | G28: 2016 | H28: 22,128.00
A29: 110 | B29: 91301 | C29: PASSIUS FINANCERS | D29: AMORTITZACIÓ DEUTE REV., FCC | E29: 01. Deute públic | F29: 011. Deute públic | G29: 2017 | H29: 22,128.00
A30: 1320 | B30: 12003 | C30: PERSONAL | D30: POLICIA LOCAL (RETRIBUCIONS GRUP C1) | E30: 13. Seguretat i mobilitat | F30: 132. Seguretat i ordre públic | G30: 2016 | H30: 109,822.00
A31: 1320 | B31: 12003 | C31: PERSONAL | D31: POLICIA LOCAL (RETRIBUCIONS GRUP C1) | E31: 13. Seguretat i mobilitat | F31: 132. Seguretat i ordre públic | G31: 2018-esm | H31: 109,822.00
A32: 1320 | B32: 12003 | C32: PERSONAL | D32: POLICIA LOCAL (RETRIBUCIONS GRUP C1) | E32: 13. Seguretat i mobilitat | F32: 132. Seguretat i ordre públic | G32: 2017 | H32: 109,822.00
A33: 1320 | B33: 12003 | C33: PERSONAL | D33: POLICIA LOCAL (RETRIBUCIONS GRUP C1) | E33: 13. Seguretat i mobilitat | F33: 132. Seguretat i ordre públic | G33: 2018 | H33: 109,822.00
A34: 1320 | B34: 12004 | C34: PERSONAL | D34: POLICIA LOCAL (RETRIBUCIONS GRUP C2) | E34: 13. Seguretat i mobilitat | F34: 132. Seguretat i ordre públic | G34: 2016 | H34: 42,312.00
A35: 1320 | B35: 12004 | C35: PERSONAL | D35: POLICIA LOCAL (RETRIBUCIONS GRUP C2) | E35: 13. Seguretat i mobilitat | F35: 132. Seguretat i ordre públic | G35: 2018-esm | H35: 42,312.00
A36: 1320 | B36: 12004 | C36: PERSONAL | D36: POLICIA LOCAL (RETRIBUCIONS GRUP C2) | E36: 13. Seguretat i mobilitat | F36: 132. Seguretat i ordre públic | G36: 2017 | H36: 42,312.00
A37: 1320 | B37: 12004 | C37: PERSONAL | D37: POLICIA LOCAL (RETRIBUCIONS GRUP C2) | E37: 13. Seguretat i mobilitat | F37: 132. Seguretat i ordre públic | G37: 2018 | H37: 42,312.00
A38: 1320 | B38: 12006 | C38: PERSONAL | D38: POLICIA LOCAL (TRIENNIS) | E38: 13. Seguretat i mobilitat | F38: 132. Seguretat i ordre públic | G38: 2016 | H38: 34,955.00
A39: 1320 | B39: 12006 | C39: PERSONAL | D39: POLICIA LOCAL (TRIENNIS) | E39: 13. Seguretat i mobilitat | F39: 132. Seguretat i ordre públic | G39: 2018-esm | H39: 30,430.00
A40: 1320 | B40: 12006 | C40: PERSONAL | D40: POLICIA LOCAL (TRIENNIS) | E40: 13. Seguretat i mobilitat | F40: 132. Seguretat i ordre públic | G40: 2017 | H40: 30,430.00
A41: 1320 | B41: 12006 | C41: PERSONAL | D41: POLICIA LOCAL (TRIENNIS) | E41: 13. Seguretat i mobilitat | F41: 132. Seguretat i ordre públic | G41: 2018 | H41: 30,430.00
A42: 1320 | B42: 12100 | C42: PERSONAL | D42: POLICIA LOCAL (COMPLEMENTS DESTÍ) | E42: 13. Seguretat i mobilitat | F42: 132. Seguretat i ordre públic | G42: 2016 | H42: 69,643.00
A43: 1320 | B43: 12100 | C43: PERSONAL | D43: POLICIA LOCAL (COMPLEMENTS DESTÍ) | E43: 13. Seguretat i mobilitat | F43: 132. Seguretat i ordre públic | G43: 2018-esm | H43: 69,643.00
A44: 1320 | B44: 12100 | C44: PERSONAL | D44: POLICIA LOCAL (COMPLEMENTS DESTÍ) | E44: 13. Seguretat i mobilitat | F44: 132. Seguretat i ordre públic | G44: 2017 | H44: 69,643.00
A45: 1320 | B45: 12100 | C45: PERSONAL | D45: POLICIA LOCAL (COMPLEMENTS DESTÍ) | E45: 13. Seguretat i mobilitat | F45: 132. Seguretat i ordre públic | G45: 2018 | H45: 69,643.00
A46: 1320 | B46: 12101 | C46: PERSONAL | D46: POLICIA LOCAL (COMPLEMENTS ESPECÍFICS) | E46: 13. Seguretat i mobilitat | F46: 132. Seguretat i ordre públic | G46: 2016 | H46: 280,399.00
A47: 1320 | B47: 12101 | C47: PERSONAL | D47: POLICIA LOCAL (COMPLEMENTS ESPECÍFICS) | E47: 13. Seguretat i mobilitat | F47: 132. Seguretat i ordre públic | G47: 2018 | H47: 317,930.00
A48: 1320 | B48: 12101 | C48: PERSONAL | D48: POLICIA LOCAL (COMPLEMENTS ESPECÍFICS) | E48: 13. Seguretat i mobilitat | F48: 132. Seguretat i ordre públic | G48: 2017 | H48: 280,399.00
A49: 1320 | B49: 12101 | C49: PERSONAL | D49: POLICIA LOCAL (COMPLEMENTS ESPECÍFICS) | E49: 13. Seguretat i mobilitat | F49: 132. Seguretat i ordre públic | G49: 2018-esm | H49: 317,930.00
A50: 1320 | B50: 15100 | C50: PERSONAL | D50: SERVEIS EXTRAORDINARIS POLICIA | E50: 13. Seguretat i mobilitat | F50: 132. Seguretat i ordre públic | G50: 2016 | H50: 7,500.00
A51: 1320 | B51: 15100 | C51: PERSONAL | D51: SERVEIS EXTRAORDINARIS POLICIA | E51: 13. Seguretat i mobilitat | F51: 132. Seguretat i ordre públic | G51: 2018-esm | H51: 4,000.00
A52: 1320 | B52: 15100 | C52: PERSONAL | D52: SERVEIS EXTRAORDINARIS POLICIA | E52: 13. Seguretat i mobilitat | F52: 132. Seguretat i ordre públic | G52: 2017 | H52: 7,500.00
A53: 1320 | B53: 15100 | C53: PERSONAL | D53: SERVEIS EXTRAORDINARIS POLICIA | E53: 13. Seguretat i mobilitat | F53: 132. Seguretat i ordre públic | G53: 2018 | H53: 4,000.00
A54: 1320 | B54: 15101 | C54: PERSONAL | D54: ALTRES POLICIA (NOCTURNITAT) | E54: 13. Seguretat i mobilitat | F54: 132. Seguretat i ordre públic | G54: 2016 | H54: 10,600.00
A55: 1320 | B55: 15101 | C55: PERSONAL | D55: ALTRES POLICIA (NOCTURNITAT) | E55: 13. Seguretat i mobilitat | F55: 132. Seguretat i ordre públic | G55: 2017 | H55: 10,600.00
A56: 1320 | B56: 15101 | C56: PERSONAL | D56: ALTRES POLICIA (NOCTURNITAT) | E56: 13. Seguretat i mobilitat | F56: 132. Seguretat i ordre públic | G56: 2018-esm | H56: 10,600.00
A57: 1320 | B57: 15101 | C57: PERSONAL | D57: ALTRES POLICIA (NOCTURNITAT) | E57: 13. Seguretat i mobilitat | F57: 132. Seguretat i ordre públic | G57: 2018 | H57: 10,600.00
A58: 1320 | B58: 16000 | C58: PERSONAL | D58: QUOTES SEGURETAT SOCIAL POLICIA LOCAL | E58: 13. Seguretat i mobilitat | F58: 132. Seguretat i ordre públic | G58: 2016 | H58: 178,106.00
A59: 1320 | B59: 16000 | C59: PERSONAL | D59: QUOTES SEGURETAT SOCIAL POLICIA LOCAL | E59: 13. Seguretat i mobilitat | F59: 132. Seguretat i ordre públic | G59: 2018 | H59: 161,600.00
A60: 1320 | B60: 16000 | C60: PERSONAL | D60: QUOTES SEGURETAT SOCIAL POLICIA LOCAL | E60: 13. Seguretat i mobilitat | F60: 132. Seguretat i ordre públic | G60: 2017 | H60: 159,964.00
A61: 1320 | B61: 16000 | C61: PERSONAL | D61: QUOTES SEGURETAT SOCIAL POLICIA LOCAL | E61: 13. Seguretat i mobilitat | F61: 132. Seguretat i ordre públic | G61: 2018-esm | H61: 161,600.00
A62: 1320 | B62: 16200 | C62: PERSONAL | D62: FORMACIÓ POLICIA LOCAL | E62: 13. Seguretat i mobilitat | F62: 132. Seguretat i ordre públic | G62: 2016 | H62: 1,500.00
A63: 1320 | B63: 16200 | C63: PERSONAL | D63: FORMACIÓ POLICIA LOCAL | E63: 13. Seguretat i mobilitat | F63: 132. Seguretat i ordre públic | G63: 2017 | H63: 1,500.00
A64: 1320 | B64: 16200 | C64: PERSONAL | D64: FORMACIÓ POLICIA LOCAL | E64: 13. Seguretat i mobilitat | F64: 132. Seguretat i ordre públic | G64: 2018-esm | H64: 1,500.00
A65: 1320 | B65: 16200 | C65: PERSONAL | D65: FORMACIÓ POLICIA LOCAL | E65: 13. Seguretat i mobilitat | F65: 132. Seguretat i ordre públic | G65: 2018 | H65: 1,500.00
A66: 1320 | B66: 20400 | C66: BENS CORRENTS I DE SERVEIS | D66: RENTING VEHICLES POLICIA LOCAL | E66: 13. Seguretat i mobilitat | F66: 132. Seguretat i ordre públic | G66: 2017 | H66: 26,675.00
A67: 1320 | B67: 20400 | C67: BENS CORRENTS I DE SERVEIS | D67: RENTING VEHICLES POLICIA LOCAL | E67: 13. Seguretat i mobilitat | F67: 132. Seguretat i ordre públic | G67: 2016 | H67: 29,866.00
A68: 9200 | B68: 20200 | C68: BENS CORRENTS I DE SERVEIS | D68: LLOGUER EDIFICIS PER A DEPENDÈNCIES MUNICIPALS | E68: 92. Serveis de caràcter general | F68: 920. Administració general dels serveis de caràcter general | G68: 2018-esm | H68: 34,200.00
A69: 9200 | B69: 20200 | C69: BENS CORRENTS I DE SERVEIS | D69: LLOGUER EDIFICIS PER A DEPENDÈNCIES MUNICIPALS | E69: 92. Serveis de caràcter general | F69: 920. Administració general dels serveis de caràcter general | G69: 2018 | H69: 34,200.00
A70: 1320 | B70: 21400 | C70: BENS CORRENTS I DE SERVEIS | D70: REPARACIONS PARC MÒBIL POLICIA LOCAL | E70: 13. Seguretat i mobilitat | F70: 132. Seguretat i ordre públic | G70: 2017 | H70: 4,300.00
A71: 1320 | B71: 21400 | C71: BENS CORRENTS I DE SERVEIS | D71: REPARACIONS PARC MÒBIL POLICIA LOCAL | E71: 13. Seguretat i mobilitat | F71: 132. Seguretat i ordre públic | G71: 2016 | H71: 2,500.00
A72: 1320 | B72: 20400 | C72: BENS CORRENTS I DE SERVEIS | D72: RENTING VEHICLES POLICIA LOCAL | E72: 13. Seguretat i mobilitat | F72: 132. Seguretat i ordre públic | G72: 2018-esm | H72: 32,742.00
A73: 1320 | B73: 20400 | C73: BENS CORRENTS I DE SERVEIS | D73: RENTING VEHICLES POLICIA LOCAL | E73: 13. Seguretat i mobilitat | F73: 132. Seguretat i ordre públic | G73: 2018 | H73: 32,742.00
A74: 1320 | B74: 22103 | C74: BENS CORRENTS I DE SERVEIS | D74: COMBUSTIBLE PARC MÒBIL POLICIA LOCAL | E74: 13. Seguretat i mobilitat | F74: 132. Seguretat i ordre públic | G74: 2017 | H74: 12,000.00
A75: 1320 | B75: 22103 | C75: BENS CORRENTS I DE SERVEIS | D75: COMBUSTIBLE PARC MÒBIL POLICIA LOCAL | E75: 13. Seguretat i mobilitat | F75: 132. Seguretat i ordre públic | G75: 2016 | H75: 12,000.00
A76: 1532 | B76: 20400 | C76: BENS CORRENTS I DE SERVEIS | D76: RENTING VEHICLES BRIGADA D'OBRES | E76: 15. Habitatge i urbanisme | F76: 153. Vies públiques | G76: 2018-esm | H76: 39,291.00
A77: 1532 | B77: 20400 | C77: BENS CORRENTS I DE SERVEIS | D77: RENTING VEHICLES BRIGADA D'OBRES | E77: 15. Habitatge i urbanisme | F77: 153. Vies públiques | G77: 2018 | H77: 39,291.00
A78: 1320 | B78: 22104 | C78: BENS CORRENTS I DE SERVEIS | D78: VESTUARI POLICIA + EQUIP PERSONAL | E78: 13. Seguretat i mobilitat | F78: 132. Seguretat i ordre públic | G78: 2017 | H78: 18,800.00
A79: 1320 | B79: 22104 | C79: BENS CORRENTS I DE SERVEIS | D79: VESTUARI POLICIA + EQUIP PERSONAL | E79: 13. Seguretat i mobilitat | F79: 132. Seguretat i ordre públic | G79: 2016 | H79: 18,800.00
A80: 1710 | B80: 20400 | C80: BENS CORRENTS I DE SERVEIS | D80: RENTING VEHICLE BRIGADA VERDE | E80: 17. Medi ambient | F80: 171. Parcs i jardins | G80: 2018-esm | H80: 5,880.00
A81: 1710 | B81: 20400 | C81: BENS CORRENTS I DE SERVEIS | D81: RENTING VEHICLE BRIGADA VERDE | E81: 17. Medi ambient | F81: 171. Parcs i jardins | G81: 2018 | H81: 5,880.00
A82: 1320 | B82: 22400 | C82: BENS CORRENTS I DE SERVEIS | D82: ASSEGURANCES VEHICLES POLICIA LOCAL | E82: 13. Seguretat i mobilitat | F82: 132. Seguretat i ordre públic | G82: 2017 | H82: 2,275.00
A83: 1320 | B83: 22400 | C83: BENS CORRENTS I DE SERVEIS | D83: ASSEGURANCES VEHICLES POLICIA LOCAL | E83: 13. Seguretat i mobilitat | F83: 132. Seguretat i ordre públic | G83: 2016 | H83: 0.00
A84: 9200 | B84: 20600 | C84: BENS CORRENTS I DE SERVEIS | D84: RENTING EQUIPS INFORMÀTICS I FOTOCOPIADORES + RÀDIO | E84: 92. Serveis de caràcter general | F84: 920. Administració general dels serveis de caràcter general | G84: 2018-esm | H84: 42,807.00
A85: 9200 | B85: 20600 | C85: BENS CORRENTS I DE SERVEIS | D85: RENTING EQUIPS INFORMÀTICS I FOTOCOPIADORES + RÀDIO | E85: 92. Serveis de caràcter general | F85: 920. Administració general dels serveis de caràcter general | G85: 2018 | H85: 42,807.00
A86: 1320 | B86: 23020 | C86: BENS CORRENTS I DE SERVEIS | D86: DIETES PERSONAL POLICIA LOCAL | E86: 13. Seguretat i mobilitat | F86: 132. Seguretat i ordre públic | G86: 2017 | H86: 2,200.00
A87: 1320 | B87: 23020 | C87: BENS CORRENTS I DE SERVEIS | D87: DIETES PERSONAL POLICIA LOCAL | E87: 13. Seguretat i mobilitat | F87: 132. Seguretat i ordre públic | G87: 2016 | H87: 0.00
A88: 1330 | B88: 20800 | C88: BENS CORRENTS I DE SERVEIS | D88: RENTING DISPOSITIUS COMUNICACIÓ POLICIA LOCAL | E88: 13. Seguretat i mobilitat | F88: 133. Ordenació del trànsit i l'estacionament | G88: 2018-esm | H88: 10,958.00
A89: 1330 | B89: 20800 | C89: BENS CORRENTS I DE SERVEIS | D89: RENTING DISPOSITIUS COMUNICACIÓ POLICIA LOCAL | E89: 13. Seguretat i mobilitat | F89: 133. Ordenació del trànsit i l'estacionament | G89: 2018 | H89: 10,958.00
A90: 1320 | B90: 64000 | C90: INVERSIONS | D90: PLA LOCAL DE SEGURETAT | E90: 13. Seguretat i mobilitat | F90: 132. Seguretat i ordre públic | G90: 2018-esm | H90: 7,000.00
A91: 1330 | B91: 20800 | C91: BENS CORRENTS I DE SERVEIS | D91: RENTING DISPOSITIUS CONTROL SEGURETAT VIAL | E91: 13. Seguretat i mobilitat | F91: 133. Ordenació del trànsit i l'estacionament | G91: 2017 | H91: 40,374.00
A92: 1330 | B92: 20800 | C92: BENS CORRENTS I DE SERVEIS | D92: RENTING DISPOSITIUS CONTROL SEGURETAT VIAL | E92: 13. Seguretat i mobilitat | F92: 133. Ordenació del trànsit i l'estacionament | G92: 2016 | H92: 8,720.00
A93: 3120 | B93: 20800 | C93: BENS CORRENTS I DE SERVEIS | D93: RENTING DESFIBRIL·LADORS | E93: 31. Salut | F93: 312. Serveis assistencials | G93: 2018-esm | H93: 6,120.00
A94: 3120 | B94: 20800 | C94: BENS CORRENTS I DE SERVEIS | D94: RENTING DESFIBRIL·LADORS | E94: 31. Salut | F94: 312. Serveis assistencials | G94: 2018 | H94: 6,120.00
A95: 1330 | B95: 20801 | C95: BENS CORRENTS I DE SERVEIS | D95: RENTING DISPOSITIUS CONTROL SEGURETAT VIAL | E95: 13. Seguretat i mobilitat | F95: 133. Ordenació del trànsit i l'estacionament | G95: 2018-esm | H95: 78,803.00
A96: 1330 | B96: 20801 | C96: BENS CORRENTS I DE SERVEIS | D96: RENTING DISPOSITIUS CONTROL SEGURETAT VIAL | E96: 13. Seguretat i mobilitat | F96: 133. Ordenació del trànsit i l'estacionament | G96: 2018 | H96: 78,803.00
A97: 1532 | B97: 21000 | C97: BENS CORRENTS I DE SERVEIS | D97: REPARACIONS MANTENIMENT VIES PÚBLIQUES ETC | E97: 15. Habitatge i urbanisme | F97: 153. Vies públiques | G97: 2018-esm | H97: 71,000.00
A98: 1532 | B98: 21000 | C98: BENS CORRENTS I DE SERVEIS | D98: REPARACIONS MANTENIMENT VIES PÚBLIQUES ETC | E98: 15. Habitatge i urbanisme | F98: 153. Vies públiques | G98: 2018 | H98: 71,000.00
A99: 1330 | B99: 22199 | C99: BENS CORRENTS I DE SERVEIS | D99: ALTRES SUBMINISTRAMENTS (SENYALS I EQUIPS) | E99: 13. Seguretat i mobilitat | F99: 133. Ordenació del trànsit i l'estacionament | G99: 2017 | H99: 34,400.00
A100: 1330 | B100: 22199 | C100: BENS CORRENTS I DE SERVEIS | D100: ALTRES SUBMINISTRAMENTS (SENYALS I EQUIPS) | E100: 13. Seguretat i mobilitat | F100: 133. Ordenació del trànsit i l'estacionament | G100: 2016 | H100: 19,520.00
A101: 1710 | B101: 21001 | C101: BENS CORRENTS I DE SERVEIS | D101: TREBALLS JARDINERIA , REPARACIONS EINES I ETC | E101: 17. Medi ambient | F101: 171. Parcs i jardins | G101: 2018-esm | H101: 10,000.00
A102: 1710 | B102: 21001 | C102: BENS CORRENTS I DE SERVEIS | D102: TREBALLS JARDINERIA , REPARACIONS EINES I ETC | E102: 17. Medi ambient | F102: 171. Parcs i jardins | G102: 2018 | H102: 10,000.00
A103: 1330 | B103: 63300 | C103: INVERSIONS | D103: SUPORT CÀMERES SEGURETAT | E103: 13. Seguretat i mobilitat | F103: 132. Seguretat i ordre públic | G103: 2018-esm | H103: 40,000.00
A104: 1330 | B104: 63300 | C104: INVERSIONS | D104: INSTAL·LACIÓ GRUP SEMAFÒRIC | E104: 13. Seguretat i mobilitat | F104: 133. Ordenació del trànsit i l'estacionament | G104: 2017 | H104: 44,000.00
A105: 1330 | B105: 63300 | C105: INVERSIONS | D105: SUPORT CÀMERES SEGURETAT | E105: 13. Seguretat i mobilitat | F105: 132. Seguretat i ordre públic | G105: 2018 | H105: 40,000.00
A106: 1350 | B106: 22699 | C106: BENS CORRENTS I DE SERVEIS | D106: PROTECCIÓ CIVIL I EMERGÈNCIES | E106: 13. Seguretat i mobilitat | F106: 135. Protecció civil | G106: 2017 | H106: 2,200.00
A107: 1350 | B107: 22699 | C107: BENS CORRENTS I DE SERVEIS | D107: PROTECCIÓ CIVIL I EMERGÈNCIES | E107: 13. Seguretat i mobilitat | F107: 135. Protecció civil | G107: 2016 | H107: 2,000.00
A108: 1522 | B108: 21200 | C108: BENS CORRENTS I DE SERVEIS | D108: CONSERVACIO DEPENDENCIES SERVEIS GENERALS | E108: 15. Habitatge i urbanisme | F108: 152. Habitatge | G108: 2018-esm | H108: 66,000.00
A109: 1522 | B109: 21200 | C109: BENS CORRENTS I DE SERVEIS | D109: CONSERVACIO DEPENDENCIES SERVEIS GENERALS | E109: 15. Habitatge i urbanisme | F109: 152. Habitatge | G109: 2018 | H109: 66,000.00
A110: 1500 | B110: 13000 | C110: PERSONAL | D110: TÉCNICS URBANISME (RETRIBUCIONS PLANTILLA) | E110: 15. Habitatge i urbanisme | F110: 150. Administració general de l'habitatge i urbanisme | G110: 2018 | H110: 148,181.00
A111: 1500 | B111: 13000 | C111: PERSONAL | D111: TÉCNICS URBANISME (RETRIBUCIONS PLANTILLA) | E111: 15. Habitatge i urbanisme | F111: 150. Administració general de l'habitatge i urbanisme | G111: 2016 | H111: 147,258.00
A112: 1500 | B112: 13000 | C112: PERSONAL | D112: TÉCNICS URBANISME (RETRIBUCIONS PLANTILLA) | E112: 15. Habitatge i urbanisme | F112: 150. Administració general de l'habitatge i urbanisme | G112: 2017 | H112: 148,181.00
A113: 1500 | B113: 13000 | C113: PERSONAL | D113: TÉCNICS URBANISME (RETRIBUCIONS PLANTILLA) | E113: 15. Habitatge i urbanisme | F113: 150. Administració general de l'habitatge i urbanisme | G113: 2018-esm | H113: 148,181.00
A114: 1500 | B114: 64000 | C114: INVERSIONS | D114: REDACCIÓ PROJECTES TÈCNICS | E114: 15. Habitatge i urbanisme | F114: 150. Administració general de l'habitatge i urbanisme | G114: 2017 | H114: 40,000.00
A115: 1500 | B115: 65000 | C115: INVERSIONS | D115: REDACCIÓ PROJECTES | E115: 15. Habitatge i urbanisme | F115: 150. Administració general de l'habitatge i urbanisme | G115: 2018-esm | H115: 34,000.00
A116: 1500 | B116: 65000 | C116: INVERSIONS | D116: REDACCIÓ PROJECTES | E116: 15. Habitatge i urbanisme | F116: 150. Administració general de l'habitatge i urbanisme | G116: 2018 | H116: 35,000.00
A117: 1522 | B117: 13000 | C117: PERSONAL | D117: BRIGADA SERVEIS (RETRIBUCIONS PLANTILLA) | E117: 15. Habitatge i urbanisme | F117: 152. Habitatge | G117: 2016 | H117: 79,829.00
A118: 1522 | B118: 13000 | C118: PERSONAL | D118: BRIGADA SERVEIS (RETRIBUCIONS PLANTILLA) | E118: 15. Habitatge i urbanisme | F118: 152. Habitatge | G118: 2017 | H118: 75,969.00
A119: 1522 | B119: 13000 | C119: PERSONAL | D119: BRIGADA SERVEIS (RETRIBUCIONS PLANTILLA) | E119: 15. Habitatge i urbanisme | F119: 152. Habitatge | G119: 2018-esm | H119: 85,303.00
A120: 1522 | B120: 13000 | C120: PERSONAL | D120: BRIGADA SERVEIS (RETRIBUCIONS PLANTILLA) | E120: 15. Habitatge i urbanisme | F120: 152. Habitatge | G120: 2018 | H120: 85,303.00
A121: 1522 | B121: 15200 | C121: PERSONAL | D121: BRIGADA SERVEIS (ALTRES INCENTIUS) | E121: 15. Habitatge i urbanisme | F121: 152. Habitatge | G121: 2016 | H121: 11,327.00
A122: 1522 | B122: 15200 | C122: PERSONAL | D122: BRIGADA SERVEIS (ALTRES INCENTIUS) | E122: 15. Habitatge i urbanisme | F122: 152. Habitatge | G122: 2017 | H122: 11,327.00
A123: 1522 | B123: 15200 | C123: PERSONAL | D123: BRIGADA SERVEIS (ALTRES INCENTIUS) | E123: 15. Habitatge i urbanisme | F123: 152. Habitatge | G123: 2018-esm | H123: 11,327.00
A124: 1522 | B124: 15200 | C124: PERSONAL | D124: BRIGADA SERVEIS (ALTRES INCENTIUS) | E124: 15. Habitatge i urbanisme | F124: 152. Habitatge | G124: 2018 | H124: 11,327.00
A125: 1522 | B125: 21200 | C125: BENS CORRENTS I DE SERVEIS | D125: CONSERVACIO DEPENDENCIES SERVEIS GENERALS | E125: 15. Habitatge i urbanisme | F125: 152. Habitatge | G125: 2017 | H125: 66,000.00
A126: 1522 | B126: 21200 | C126: BENS CORRENTS I DE SERVEIS | D126: CONSERVACIO DEPENDENCIES SERVEIS GENERALS | E126: 15. Habitatge i urbanisme | F126: 152. Habitatge | G126: 2016 | H126: 51,000.00
A127: 1532 | B127: 21200 | C127: BENS CORRENTS I DE SERVEIS | D127: OBRES I REPARACIONS EXEC. SUBSIDIÀRIA | E127: 15. Habitatge i urbanisme | F127: 153. Vies públiques | G127: 2018-esm | H127: 10,000.00
A128: 1532 | B128: 21200 | C128: BENS CORRENTS I DE SERVEIS | D128: OBRES I REPARACIONS EXEC. SUBSIDIÀRIA | E128: 15. Habitatge i urbanisme | F128: 153. Vies públiques | G128: 2018 | H128: 10,000.00
A129: 1600 | B129: 21200 | C129: BENS CORRENTS I DE SERVEIS | D129: CONSERVACIÓ CLAVEGUERAM | E129: 16. Benestar comunitari | F129: 160. Clavegueram | G129: 2018 | H129: 21,000.00
A130: 1522 | B130: 22700 | C130: BENS CORRENTS I DE SERVEIS | D130: NETEJA DEPENDENCIES | E130: 15. Habitatge i urbanisme | F130: 152. Habitatge | G130: 2017 | H130: 281,888.00
A131: 1522 | B131: 22700 | C131: BENS CORRENTS I DE SERVEIS | D131: PRESTACIO SERVEIS MANTENIMENT(ascensors/alarmes/extintors/calderes escoles) | E131: 15. Habitatge i urbanisme | F131: 152. Habitatge | G131: 2017 | H131: 34,270.00
A132: 1522 | B132: 22700 | C132: BENS CORRENTS I DE SERVEIS | D132: NETEJA DEPENDENCIES | E132: 15. Habitatge i urbanisme | F132: 152. Habitatge | G132: 2016 | H132: 269,427.00
A133: 1522 | B133: 22700 | C133: BENS CORRENTS I DE SERVEIS | D133: PRESTACIO SERVEIS MANTENIMENT(ascensors/alarmes/extintors/calderes escoles) | E133: 15. Habitatge i urbanisme | F133: 152. Habitatge | G133: 2016 | H133: 32,530.00
A134: 1600 | B134: 21200 | C134: BENS CORRENTS I DE SERVEIS | D134: CONSERVACIÓ CLAVEGUERAM | E134: 16. Benestar comunitari | F134: 160. Clavegueram | G134: 2018-esm | H134: 21,000.00
A135: 1610 | B135: 21200 | C135: BENS CORRENTS I DE SERVEIS | D135: CONSERVACIÓ/REPARACIONS DIPÓSIT D'AIGUA | E135: 16. Benestar comunitari | F135: 161. Abastament domiciliari d'aigua potable | G135: 2018-esm | H135: 2,000.00
A136: 1610 | B136: 21200 | C136: BENS CORRENTS I DE SERVEIS | D136: CONSERVACIÓ/REPARACIONS DIPÓSIT D'AIGUA | E136: 16. Benestar comunitari | F136: 161. Abastament domiciliari d'aigua potable | G136: 2018 | H136: 2,000.00
A137: 1522 | B137: 48000 | C137: TRANSFERÈNCIES CORRENTS | D137: SUBVENCIONS ARRANJAMENT I MILLORA FAÇANES | E137: 15. Habitatge i urbanisme | F137: 152. Habitatge | G137: 2016 | H137: 5,000.00
A138: 1522 | B138: 48000 | C138: TRANSFERÈNCIES CORRENTS | D138: SUBVENCIONS ARRANJAMENT I MILLORA FAÇANES | E138: 15. Habitatge i urbanisme | F138: 152. Habitatge | G138: 2017 | H138: 3,000.00
A139: 1522 | B139: 48000 | C139: TRANSFERÈNCIES CORRENTS | D139: SUBVENCIONS ARRANJAMENT I MILLORA FAÇANES | E139: 15. Habitatge i urbanisme | F139: 152. Habitatge | G139: 2018-esm | H139: 3,000.00
A140: 1522 | B140: 48000 | C140: TRANSFERÈNCIES CORRENTS | D140: SUBVENCIONS ARRANJAMENT I MILLORA FAÇANES | E140: 15. Habitatge i urbanisme | F140: 152. Habitatge | G140: 2018 | H140: 3,000.00
A141: 1522 | B141: 63200 | C141: INVERSIONS | D141: REHABILITACIÓ I ADEQUACIÓ EDIFICIS MUNICIPALS | E141: 15. Habitatge i urbanisme | F141: 152. Habitatge | G141: 2016 | H141: 70,450.00
A142: 1522 | B142: 63210 | C142: INVERSIONS | D142: ARRANJAMENT NAU MASCARÒ | E142: 15. Habitatge i urbanisme | F142: 152. Habitatge | G142: 2016 | H142: 36,250.00
A143: 1530 | B143: 64000 | C143: INVERSIONS | D143: PLA D'ACCESSIBILITAT MUNICIPAL | E143: 15. Habitatge i urbanisme | F143: 153. Vies públiques | G143: 2018-esm | H143: 5,000.00
A144: 1531 | B144: 69210 | C144: INVERSIONS | D144: CONVERSIÓ ZONA VIANANTS DEL CENTRE FASE | E144: 15. Habitatge i urbanisme | F144: 153. Vies públiques | G144: 2016 | H144: 96,000.00
A145: 1532 | B145: 13000 | C145: PERSONAL | D145: BRIGADA OBRES (RETRIBUCIONS PLANTILLA) | E145: 15. Habitatge i urbanisme | F145: 153. Vies públiques | G145: 2016 | H145: 88,777.00
A146: 1532 | B146: 13000 | C146: PERSONAL | D146: BRIGADA OBRES (RETRIBUCIONS PLANTILLA) | E146: 15. Habitatge i urbanisme | F146: 153. Vies públiques | G146: 2017 | H146: 85,303.00
A147: 1532 | B147: 13000 | C147: PERSONAL | D147: BRIGADA OBRES (RETRIBUCIONS PLANTILLA) | E147: 15. Habitatge i urbanisme | F147: 153. Vies públiques | G147: 2018 | H147: 75,969.00
A148: 1532 | B148: 13000 | C148: PERSONAL | D148: BRIGADA OBRES (RETRIBUCIONS PLANTILLA) | E148: 15. Habitatge i urbanisme | F148: 153. Vies públiques | G148: 2018-esm | H148: 75,969.00
A149: 1532 | B149: 16000 | C149: PERSONAL | D149: QUOTES SEGURETAT SOCIAL BRIGADA OBRES I SERVEIS | E149: 15. Habitatge i urbanisme | F149: 153. Vies públiques | G149: 2018 | H149: 107,835.00
A150: 1532 | B150: 16000 | C150: PERSONAL | D150: QUOTES SEGURETAT SOCIAL BRIGADA OBRES I SERVEIS | E150: 15. Habitatge i urbanisme | F150: 153. Vies públiques | G150: 2016 | H150: 113,329.00
A151: 1532 | B151: 16000 | C151: PERSONAL | D151: QUOTES SEGURETAT SOCIAL BRIGADA OBRES I SERVEIS | E151: 15. Habitatge i urbanisme | F151: 153. Vies públiques | G151: 2017 | H151: 106,756.00
A152: 1532 | B152: 16000 | C152: PERSONAL | D152: QUOTES SEGURETAT SOCIAL BRIGADA OBRES I SERVEIS | E152: 15. Habitatge i urbanisme | F152: 153. Vies públiques | G152: 2018-esm | H152: 107,835.00
A153: 1532 | B153: 20400 | C153: BENS CORRENTS I DE SERVEIS | D153: RENTING VEHICLES BRIGADA D'OBRES | E153: 15. Habitatge i urbanisme | F153: 153. Vies públiques | G153: 2017 | H153: 37,398.00
A154: 1532 | B154: 20400 | C154: BENS CORRENTS I DE SERVEIS | D154: RENTING VEHICLES BRIGADA D'OBRES | E154: 15. Habitatge i urbanisme | F154: 153. Vies públiques | G154: 2016 | H154: 33,627.00
A155: 1622 | B155: 21200 | C155: BENS CORRENTS I DE SERVEIS | D155: CONSERVACIÓ/MANTENIMENT INSTAL·LACIONS DEIXALLERIA | E155: 16. Benestar comunitari | F155: 162. Recollida, gestió i tractament de residus | G155: 2018-esm | H155: 4,000.00
A156: 1622 | B156: 21200 | C156: BENS CORRENTS I DE SERVEIS | D156: CONSERVACIÓ/MANTENIMENT INSTAL·LACIONS DEIXALLERIA | E156: 16. Benestar comunitari | F156: 162. Recollida, gestió i tractament de residus | G156: 2018 | H156: 4,000.00
A157: 1532 | B157: 21000 | C157: BENS CORRENTS I DE SERVEIS | D157: REPARACIONS MANTENIMENT VIES PÚBLIQUES ETC | E157: 15. Habitatge i urbanisme | F157: 153. Vies públiques | G157: 2017 | H157: 69,900.00
A158: 1532 | B158: 21000 | C158: BENS CORRENTS I DE SERVEIS | D158: REPARACIONS MANTENIMENT VIES PÚBLIQUES ETC | E158: 15. Habitatge i urbanisme | F158: 153. Vies públiques | G158: 2016 | H158: 65,000.00
A159: 1640 | B159: 21200 | C159: BENS CORRENTS I DE SERVEIS | D159: CONSERVACIÓ CEMENTIRI | E159: 16. Benestar comunitari | F159: 164. Cementiri i serveis funeraris | G159: 2018 | H159: 2,500.00
A160: 1640 | B160: 21200 | C160: BENS CORRENTS I DE SERVEIS | D160: CONSERVACIÓ CEMENTIRI | E160: 16. Benestar comunitari | F160: 164. Cementiri i serveis funeraris | G160: 2018-esm | H160: 2,500.00
A161: 1532 | B161: 21200 | C161: BENS CORRENTS I DE SERVEIS | D161: OBRES I REPARACIONS EXEC. SUBSIDIÀRIA | E161: 15. Habitatge i urbanisme | F161: 153. Vies públiques | G161: 2017 | H161: 10,000.00
A162: 1532 | B162: 21200 | C162: BENS CORRENTS I DE SERVEIS | D162: OBRES I REPARACIONS EXEC. SUBSIDIÀRIA | E162: 15. Habitatge i urbanisme | F162: 153. Vies públiques | G162: 2016 | H162: 10,000.00
A163: 1710 | B163: 21200 | C163: BENS CORRENTS I DE SERVEIS | D163: MANTENIMENT HORTS MUNICIPALS | E163: 17. Medi ambient | F163: 171. Parcs i jardins | G163: 2018-esm | H163: 700.00
A164: 1710 | B164: 21200 | C164: BENS CORRENTS I DE SERVEIS | D164: MANTENIMENT HORTS MUNICIPALS | E164: 17. Medi ambient | F164: 171. Parcs i jardins | G164: 2018 | H164: 700.00
A165: 1532 | B165: 21400 | C165: BENS CORRENTS I DE SERVEIS | D165: CONSERVACIÓ I MANTENIMENT PARC MÒBIL BRIGADA OBRES | E165: 15. Habitatge i urbanisme | F165: 153. Vies públiques | G165: 2017 | H165: 5,300.00
A166: 1532 | B166: 21400 | C166: BENS CORRENTS I DE SERVEIS | D166: CONSERVACIÓ I MANTENIMENT PARC MÒBIL BRIGADA OBRES | E166: 15. Habitatge i urbanisme | F166: 153. Vies públiques | G166: 2016 | H166: 5,700.00
A167: 3330 | B167: 21200 | C167: BENS CORRENTS I DE SERVEIS | D167: DESPESES MANTENIMENT EQUIPAMENTS CULTURALS | E167: 33. Cultura | F167: 333. Equipaments culturals i museus | G167: 2018-esm | H167: 2,000.00
A168: 3330 | B168: 21200 | C168: BENS CORRENTS I DE SERVEIS | D168: DESPESES MANTENIMENT EQUIPAMENTS CULTURALS | E168: 33. Cultura | F168: 333. Equipaments culturals i museus | G168: 2018 | H168: 2,000.00
A169: 1532 | B169: 21501 | C169: BENS CORRENTS I DE SERVEIS | D169: MANTENIMENT MOBILIARI VIES PUBLIQUES, PARCS,JARDINS | E169: 15. Habitatge i urbanisme | F169: 153. Vies públiques | G169: 2017 | H169: 12,700.00
A170: 1532 | B170: 21501 | C170: BENS CORRENTS I DE SERVEIS | D170: MANTENIMENT MOBILIARI VIES PUBLIQUES, PARCS,JARDINS | E170: 15. Habitatge i urbanisme | F170: 153. Vies públiques | G170: 2016 | H170: 12,700.00
A171: 3422 | B171: 21200 | C171: BENS CORRENTS I DE SERVEIS | D171: MANTENIMENT CAMP DE FUTBOL | E171: 34. Esport | F171: 342. Instal·lacions esportives | G171: 2018-esm | H171: 39,000.00
A172: 3422 | B172: 21200 | C172: BENS CORRENTS I DE SERVEIS | D172: MANTENIMENT CAMP DE FUTBOL | E172: 34. Esport | F172: 342. Instal·lacions esportives | G172: 2018 | H172: 39,000.00
A173: 1532 | B173: 22103 | C173: BENS CORRENTS I DE SERVEIS | D173: COMBUSTIBLE PARC MOBIL | E173: 15. Habitatge i urbanisme | F173: 153. Vies públiques | G173: 2017 | H173: 7,000.00
A174: 1532 | B174: 22103 | C174: BENS CORRENTS I DE SERVEIS | D174: COMBUSTIBLE PARC MOBIL | E174: 15. Habitatge i urbanisme | F174: 153. Vies públiques | G174: 2016 | H174: 10,000.00
A175: 9200 | B175: 21200 | C175: BENS CORRENTS I DE SERVEIS | D175: ACTUACIONS COMPLIMENT PROGRAMA RISCOS LABORALS | E175: 92. Serveis de caràcter general | F175: 920. Administració general dels serveis de caràcter general | G175: 2018-esm | H175: 4,000.00
A176: 9200 | B176: 21200 | C176: BENS CORRENTS I DE SERVEIS | D176: ACTUACIONS COMPLIMENT PROGRAMA RISCOS LABORALS | E176: 92. Serveis de caràcter general | F176: 920. Administració general dels serveis de caràcter general | G176: 2018 | H176: 4,000.00
A177: 1532 | B177: 22104 | C177: BENS CORRENTS I DE SERVEIS | D177: VESTUARI BRIGADA | E177: 15. Habitatge i urbanisme | F177: 153. Vies públiques | G177: 2017 | H177: 4,700.00
A178: 1532 | B178: 22104 | C178: BENS CORRENTS I DE SERVEIS | D178: VESTUARI BRIGADA | E178: 15. Habitatge i urbanisme | F178: 153. Vies públiques | G178: 2016 | H178: 5,700.00
A179: 1330 | B179: 21300 | C179: BENS CORRENTS I DE SERVEIS | D179: TREBALLS COMPLEMENTARIS D'INSTAL.LACIÓ I MATENIMENT DE CÀMERES DE VIGILÀNCIA | E179: 13. Seguretat i mobilitat | F179: 133. Ordenació del trànsit i l'estacionament | G179: 2018-esm | H179: 15,000.00
A180: 1330 | B180: 21300 | C180: BENS CORRENTS I DE SERVEIS | D180: TREBALLS COMPLEMENTARIS D'INSTAL.LACIÓ I MATENIMENT DE CÀMERES DE VIGILÀNCIA | E180: 13. Seguretat i mobilitat | F180: 133. Ordenació del trànsit i l'estacionament | G180: 2018 | H180: 15,000.00
A181: 1532 | B181: 22400 | C181: BENS CORRENTS I DE SERVEIS | D181: PRIMES ASSEGURANCES VEHICLES BRIGADA D'OBRES | E181: 15. Habitatge i urbanisme | F181: 153. Vies públiques | G181: 2017 | H181: 3,505.00
A182: 1532 | B182: 22400 | C182: BENS CORRENTS I DE SERVEIS | D182: PRIMES ASSEGURANCES VEHICLES BRIGADA D'OBRES | E182: 15. Habitatge i urbanisme | F182: 153. Vies públiques | G182: 2016 | H182: 3,000.00
A183: 1710 | B183: 21300 | C183: BENS CORRENTS I DE SERVEIS | D183: REPARACIONS MAQUINÀRIA, UTILLATGE ETC JARDINERIA | E183: 17. Medi ambient | F183: 171. Parcs i jardins | G183: 2018-esm | H183: 3,000.00
A184: 1710 | B184: 21300 | C184: BENS CORRENTS I DE SERVEIS | D184: REPARACIONS MAQUINÀRIA, UTILLATGE ETC JARDINERIA | E184: 17. Medi ambient | F184: 171. Parcs i jardins | G184: 2018 | H184: 3,000.00
A185: 1532 | B185: 61900 | C185: INVERSIONS | D185: ARRANJAMENT CARRERS | E185: 15. Habitatge i urbanisme | F185: 153. Vies públiques | G185: 2017 | H185: 130,000.00
A186: 1532 | B186: 61901 | C186: INVERSIONS | D186: ASFALTAT CARRERS | E186: 15. Habitatge i urbanisme | F186: 153. Vies públiques | G186: 2017 | H186: 50,000.00
A187: 1532 | B187: 61902 | C187: INVERSIONS | D187: CONTRUCCIÓ CARRIL-BICI | E187: 15. Habitatge i urbanisme | F187: 153. Vies públiques | G187: 2017 | H187: 120,000.00
A188: 1532 | B188: 61903 | C188: INVERSIONS | D188: ARRANJAMENT PETANC, PARC ESPORTIU I ALTRES | E188: 15. Habitatge i urbanisme | F188: 153. Vies públiques | G188: 2017 | H188: 60,000.00
A189: 1532 | B189: 61904 | C189: INVERSIONS | D189: REPARACIÓ I MILLORA CAMÍ DEL CEMENTIRI | E189: 15. Habitatge i urbanisme | F189: 153. Vies públiques | G189: 2017 | H189: 60,300.00
A190: 1532 | B190: 63100 | C190: INVERSIONS | D190: ADEQUACIÓ ESPAI ESGLÈSIA | E190: 15. Habitatge i urbanisme | F190: 153. Vies públiques | G190: 2017 | H190: 23,000.00
A191: 1532 | B191: 69200 | C191: INVERSIONS | D191: URBANITZACIÓ ACCÉS ESGLÈSIA | E191: 15. Habitatge i urbanisme | F191: 153. Vies públiques | G191: 2016 | H191: 26,000.00
A192: 1532 | B192: 69211 | C192: INVERSIONS | D192: CONVERSIÓ ZONA VIANANTS | E192: 15. Habitatge i urbanisme | F192: 153. Vies públiques | G192: 2017 | H192: 500,000.00
A193: 1550 | B193: 61903 | C193: INVERSIONS | D193: CARRIL BICI / RIERA DE TIANA | E193: 15. Habitatge i urbanisme | F193: 153. Vies públiques | G193: 2018 | H193: 107,000.00
A194: 1550 | B194: 61903 | C194: INVERSIONS | D194: CARRIL BICI / RIERA DE TIANA | E194: 15. Habitatge i urbanisme | F194: 153. Vies públiques | G194: 2018-esm | H194: 107,000.00
A195: 1550 | B195: 62300 | C195: INVERSIONS | D195: MOBILITAT | E195: 15. Habitatge i urbanisme | F195: 153. Vies públiques | G195: 2018 | H195: 125,000.00
A196: 1550 | B196: 62300 | C196: INVERSIONS | D196: MOBILITAT | E196: 15. Habitatge i urbanisme | F196: 153. Vies públiques | G196: 2018-esm | H196: 125,000.00
A197: 1550 | B197: 69200 | C197: INVERSIONS | D197: ACTUACIONS VIA PÚBLICA | E197: 15. Habitatge i urbanisme | F197: 153. Vies públiques | G197: 2018 | H197: 402,000.00
A198: 1550 | B198: 69200 | C198: INVERSIONS | D198: ACTUACIONS VIA PÚBLICA | E198: 15. Habitatge i urbanisme | F198: 153. Vies públiques | G198: 2018-esm | H198: 402,000.00
A199: 1600 | B199: 21200 | C199: BENS CORRENTS I DE SERVEIS | D199: CONSERVACIÓ CLAVEGUERAM | E199: 16. Benestar comunitari | F199: 160. Clavegueram | G199: 2017 | H199: 21,000.00
A200: 1600 | B200: 21200 | C200: BENS CORRENTS I DE SERVEIS | D200: CONSERVACIÓ CLAVEGUERAM | E200: 16. Benestar comunitari | F200: 160. Clavegueram | G200: 2016 | H200: 15,000.00
... 774 more rows

Sheet DESPESES DINÀMIC
B4: 2018 | D4: 2018-esm
B5: Suma | C5: % | D5: Suma | E5: %
A6: 01. Deute públic | B6: 471,725 | C6: 0 | D6: 471,725 | E6: 0
A7: 011. Deute públic | B7: 471,725 | C7: 0 | D7: 471,725 | E7: 0
A8: AMORTITZACIÓ DEUTE REV., FCC | B8: 22,128 | C8: 0 | D8: 22,128 | E8: 0
A9: DESPESES FORMALITZACIÓ,CANCELACIÓ | B9: 1,000 | C9: 0 | D9: 1,000 | E9: 0
A10: INTERESSOS DE DEMORA | B10: 2,000 | C10: 0 | D10: 2,000 | E10: 0
A11: INTERESSOS OPERACIONS A CURT TERMINI | B11: 2,000 | C11: 0 | D11: 2,000 | E11: 0
A12: INTERESSOS PRÈSTECS VIGENTS | B12: 102,699 | C12: 0 | D12: 102,699 | E12: 0
A13: QUOTES AMORTITZACIÓ PRESTEC FORA PÚBLIC | B13: 296,898 | C13: 0 | D13: 296,898 | E13: 0
A14: QUOTES AMORTITZACIÓ PRÈSTES SECTOR PÚBLIC | B14: 45,000 | C14: 0 | D14: 45,000 | E14: 0
A15: 13. Seguretat i mobilitat | B15: 1,007,579 | C15: 0 | D15: 1,010,479 | E15: 0
A16: 133. Ordenació del trànsit i l'estacionament | B16: 139,725 | C16: 0 | D16: 139,725 | E16: 0
A17: ALTRES SUBMINISTRAMENTS (SENYALS I EQUIPS) | B17: 34,964 | C17: 0 | D17: 34,964 | E17: 0
A18: RENTING DISPOSITIUS CONTROL SEGURETAT VIAL | B18: 78,803 | C18: 0 | D18: 78,803 | E18: 0
A19: RENTING DISPOSITIUS COMUNICACIÓ POLICIA LOCAL | B19: 10,958 | C19: 0 | D19: 10,958 | E19: 0
A20: TREBALLS COMPLEMENTARIS D'INSTAL.LACIÓ I MATENIMENT DE CÀMERES DE VIGILÀNCIA | B20: 15,000 | C20: 0 | D20: 15,000 | E20: 0
A21: 135. Protecció civil | B21: 2,200 | C21: 0 | D21: 1,000 | E21: 0
A22: PROTECCIÓ CIVIL I EMERGÈNCIES | B22: 2,200 | C22: 0 | D22: 1,000 | E22: 0
A23: 132. Seguretat i ordre públic | B23: 865,654 | C23: 0 | D23: 869,754 | E23: 0
A24: ALTRES POLICIA (NOCTURNITAT) | B24: 10,600 | C24: 0 | D24: 10,600 | E24: 0
A25: ASSEGURANCES VEHICLES POLICIA LOCAL | B25: 2,275 | C25: 0 | D25: 2,275 | E25: 0
A26: COMBUSTIBLE PARC MÒBIL POLICIA LOCAL | B26: 9,900 | C26: 0 | D26: 7,000 | E26: 0
A27: DIETES PERSONAL POLICIA LOCAL | B27: 3,200 | C27: 0 | D27: 3,200 | E27: 0
A28: FORMACIÓ POLICIA LOCAL | B28: 1,500 | C28: 0 | D28: 1,500 | E28: 0
A29: POLICIA LOCAL (COMPLEMENTS DESTÍ) | B29: 69,643 | C29: 0 | D29: 69,643 | E29: 0
A30: POLICIA LOCAL (COMPLEMENTS ESPECÍFICS) | B30: 317,930 | C30: 0 | D30: 317,930 | E30: 0
A31: POLICIA LOCAL (RETRIBUCIONS GRUP C1) | B31: 109,822 | C31: 0 | D31: 109,822 | E31: 0
A32: POLICIA LOCAL (RETRIBUCIONS GRUP C2) | B32: 42,312 | C32: 0 | D32: 42,312 | E32: 0
A33: POLICIA LOCAL (TRIENNIS) | B33: 30,430 | C33: 0 | D33: 30,430 | E33: 0
A34: QUOTES SEGURETAT SOCIAL POLICIA LOCAL | B34: 161,600 | C34: 0 | D34: 161,600 | E34: 0
A35: RENTING VEHICLES POLICIA LOCAL | B35: 32,742 | C35: 0 | D35: 32,742 | E35: 0
A36: REPARACIONS PARC MÒBIL POLICIA LOCAL | B36: 4,900 | C36: 0 | D36: 4,900 | E36: 0
A37: SERVEIS EXTRAORDINARIS POLICIA | B37: 4,000 | C37: 0 | D37: 4,000 | E37: 0
A38: SUPORT CÀMERES SEGURETAT | B38: 40,000 | C38: 0 | D38: 40,000 | E38: 0
A39: VESTUARI POLICIA + EQUIP PERSONAL | B39: 24,800 | C39: 0 | D39: 24,800 | E39: 0
A40: PLA LOCAL DE SEGURETAT | C40: 0 | D40: 7,000 | E40: 0
A41: 15. Habitatge i urbanisme | B41: 1,727,301 | C41: 0 | D41: 1,656,301 | E41: 0
A42: 150. Administració general de l'habitatge i urbanisme | B42: 183,181 | C42: 0 | D42: 182,181 | E42: 0
A43: REDACCIÓ PROJECTES | B43: 35,000 | C43: 0 | D43: 34,000 | E43: 0
A44: TÉCNICS URBANISME (RETRIBUCIONS PLANTILLA) | B44: 148,181 | C44: 0 | D44: 148,181 | E44: 0
A45: 152. Habitatge | B45: 493,820 | C45: 0 | D45: 493,820 | E45: 0
A46: BRIGADA SERVEIS (ALTRES INCENTIUS) | B46: 11,327 | C46: 0 | D46: 11,327 | E46: 0
A47: BRIGADA SERVEIS (RETRIBUCIONS PLANTILLA) | B47: 85,303 | C47: 0 | D47: 85,303 | E47: 0
A48: CONSERVACIO DEPENDENCIES SERVEIS GENERALS | B48: 66,000 | C48: 0 | D48: 66,000 | E48: 0
A49: NETEJA DEPENDENCIES | B49: 292,820 | C49: 0 | D49: 292,820 | E49: 0
A50: PRESTACIO SERVEIS MANTENIMENT(ascensors/alarmes/extintors/calderes escoles) | B50: 35,370 | C50: 0 | D50: 35,370 | E50: 0
A51: SUBVENCIONS ARRANJAMENT I MILLORA FAÇANES | B51: 3,000 | C51: 0 | D51: 3,000 | E51: 0
A52: 153. Vies públiques | B52: 1,050,300 | C52: 0 | D52: 980,300 | E52: 0
A53: ACTUACIONS VIA PÚBLICA | B53: 402,000 | C53: 0 | D53: 402,000 | E53: 0
A54: BRIGADA OBRES (RETRIBUCIONS PLANTILLA) | B54: 75,969 | C54: 0 | D54: 75,969 | E54: 0
A55: CARRIL BICI / RIERA DE TIANA | B55: 107,000 | C55: 0 | D55: 107,000 | E55: 0
A56: COMBUSTIBLE PARC MOBIL | B56: 7,000 | C56: 0 | D56: 7,000 | E56: 0
A57: CONDICIONAMENT DE PARCS | B57: 75,000 | C57: 0 | D57: 0 | E57: 0
A58: CONSERVACIÓ I MANTENIMENT PARC MÒBIL BRIGADA OBRES | B58: 5,300 | C58: 0 | D58: 5,300 | E58: 0
A59: MANTENIMENT MOBILIARI VIES PUBLIQUES, PARCS,JARDINS | B59: 16,700 | C59: 0 | D59: 16,700 | E59: 0
A60: MOBILITAT | B60: 125,000 | C60: 0 | D60: 125,000 | E60: 0
A61: OBRES I REPARACIONS EXEC. SUBSIDIÀRIA | B61: 10,000 | C61: 0 | D61: 10,000 | E61: 0
A62: PRIMES ASSEGURANCES VEHICLES BRIGADA D'OBRES | B62: 3,505 | C62: 0 | D62: 3,505 | E62: 0
A63: QUOTES SEGURETAT SOCIAL BRIGADA OBRES I SERVEIS | B63: 107,835 | C63: 0 | D63: 107,835 | E63: 0
A64: RENTING VEHICLES BRIGADA D'OBRES | B64: 39,291 | C64: 0 | D64: 39,291 | E64: 0
A65: REPARACIONS MANTENIMENT VIES PÚBLIQUES ETC | B65: 71,000 | C65: 0 | D65: 71,000 | E65: 0
A66: VESTUARI BRIGADA | B66: 4,700 | C66: 0 | D66: 4,700 | E66: 0
A67: PLA D'ACCESSIBILITAT MUNICIPAL | C67: 0 | D67: 5,000 | E67: 0
A68: 16. Benestar comunitari | B68: 1,344,811 | C68: 0 | D68: 1,344,811 | E68: 0
A69: 161. Abastament domiciliari d'aigua potable | B69: 67,730 | C69: 0 | D69: 67,730 | E69: 0
A70: CONSERVACIÓ/REPARACIONS DIPÓSIT D'AIGUA | B70: 2,000 | C70: 0 | D70: 2,000 | E70: 0
A71: SUBMINISTRAMENT AIGUA MUNICIPALS | B71: 65,730 | C71: 0 | D71: 65,730 | E71: 0
A72: 164. Cementiri i serveis funeraris | B72: 22,500 | C72: 0 | D72: 22,500 | E72: 0
A73: CEMENTIRI | B73: 20,000 | C73: 0 | D73: 20,000 | E73: 0
A74: CONSERVACIÓ CEMENTIRI | B74: 2,500 | C74: 0 | D74: 2,500 | E74: 0
A75: 160. Clavegueram | B75: 21,000 | C75: 0 | D75: 21,000 | E75: 0
A76: CONSERVACIÓ CLAVEGUERAM | B76: 21,000 | C76: 0 | D76: 21,000 | E76: 0
A77: 165. Enllumenat públic | B77: 299,720 | C77: 0 | D77: 299,720 | E77: 0
A78: CONSERVACIÓ, REPARACIÓ I REPOSICIÓ ENLLUMENAT PÚBLIC | B78: 20,000 | C78: 0 | D78: 20,000 | E78: 0
A79: CONSUM ENERGIA ENLLUMENAT PÚBLIC | B79: 122,000 | C79: 0 | D79: 122,000 | E79: 0
A80: CONTRACTE CONSERVACIÓ ENLLUMENAT PÚBLIC (SECE) | B80: 97,720 | C80: 0 | D80: 97,720 | E80: 0
A81: TREBALLS VARIS ENLLUMENAT | B81: 60,000 | C81: 0 | D81: 60,000 | E81: 0
A82: 163. Neteja viària | B82: 468,600 | C82: 0 | D82: 468,600 | E82: 0
A83: SERVEIS NETEJA VIARIA | B83: 468,600 | C83: 0 | D83: 468,600 | E83: 0
A84: 162. Recollida, gestió i tractament de residus | B84: 465,261 | C84: 0 | D84: 465,261 | E84: 0
A85: BOSSES COMPOSTABLES | B85: 500 | C85: 0 | D85: 500 | E85: 0
A86: CONSERVACIÓ/MANTENIMENT INSTAL·LACIONS DEIXALLERIA | B86: 4,000 | C86: 0 | D86: 4,000 | E86: 0
A87: CONTRACTE FUNCIONAMENT DEIXALLERIA | B87: 50,127 | C87: 0 | D87: 50,127 | E87: 0
A88: RECOLLIDA D'ESCOMBRARIES | B88: 352,134 | C88: 0 | D88: 352,134 | E88: 0
A89: RECOLLIDA VEHICLES ABANDONATS | B89: 26,000 | C89: 0 | D89: 26,000 | E89: 0
A90: TRANSPORT RESIDUS DEIXALLERIA A.M.B. | B90: 2,000 | C90: 0 | D90: 2,000 | E90: 0
A91: TREBALLS ASSISTÈNCIA SEGUIMENT RECOLLIDA RESIDUS | B91: 30,500 | C91: 0 | D91: 30,500 | E91: 0
A92: 17. Medi ambient | B92: 589,826 | C92: 0 | D92: 579,473 | E92: 0
A93: 171. Parcs i jardins | B93: 464,875 | C93: 0 | D93: 454,522 | E93: 0
A94: APORTACIÓ ADF | B94: 12,000 | C94: 0 | D94: 12,000 | E94: 0
A95: APORTACIÓ ÀREA METROPOLITANA.- MANTENIMENT PARC TRANVIA | B95: 37,697 | C95: 0 | D95: 37,697 | E95: 0
A96: APORTACIO CONSORCI PARC SERRALADA LITORAL | B96: 1,700 | C96: 0 | D96: 1,700 | E96: 0
A97: COMBUSTIBLE VEHICLE PARCS I JARDINS (soc) | B97: 2,000 | C97: 0 | D97: 2,000 | E97: 0
A98: CONTRACTACIÓ SERVEI I GESTIÓ ARBRAT | B98: 95,353 | C98: 0 | D98: 85,000 | E98: 0
A99: CONTRACTES SERVEIS MANTENIMENT ESPAIS VERDS PÚBLICS | B99: 294,545 | C99: 0 | D99: 294,545 | E99: 0
A100: MANTENIMENT HORTS MUNICIPALS | B100: 700 | C100: 0 | D100: 700 | E100: 0
A101: RENTING VEHICLE BRIGADA VERDE | B101: 5,880 | C101: 0 | D101: 5,880 | E101: 0
A102: REPARACIONS MAQUINÀRIA, UTILLATGE ETC JARDINERIA | B102: 3,000 | C102: 0 | D102: 3,000 | E102: 0
A103: TREBALLS JARDINERIA , REPARACIONS EINES I ETC | B103: 10,000 | C103: 0 | D103: 10,000 | E103: 0
A104: VESTUARI PERSONAL JARDINERIA (SOC) | B104: 2,000 | C104: 0 | D104: 2,000 | E104: 0
A105: 172. Protecció i millora del medi ambient | B105: 10,500 | C105: 0 | D105: 10,500 | E105: 0
A106: NETEJA SOLARS | B106: 10,500 | C106: 0 | D106: 10,500 | E106: 0
A107: 170. Administració general del medi ambient | B107: 114,451 | C107: 0 | D107: 114,451 | E107: 0
A108: AGENT CÍVIC (COMPLEMENT DESTÍ) | B108: 3,220 | C108: 0 | D108: 3,220 | E108: 0
A109: AGENT CÍVIC (COMPLEMENT ESPECÍFIC) | B109: 7,068 | C109: 0 | D109: 7,068 | E109: 0
A110: AGENT CÍVIC (RETRIBUCIONS GRUP C2) | B110: 6,319 | C110: 0 | D110: 6,319 | E110: 0
A111: AGENT CÍVIC (TRIENNIS) | B111: 566 | C111: 0 | D111: 566 | E111: 0
A112: EDUCACIÓ AMBIENTALI COMUNICACIÓ AMBIENTAL | B112: 22,000 | C112: 0 | D112: 22,000 | E112: 0
A113: MEDI AMBIENT (RETRIBUCIONS PLANTILLA) | B113: 49,583 | C113: 0 | D113: 49,583 | E113: 0
A114: MEDI NATURAL DESPESES GRASL DE FUNCIONAMENT | B114: 3,000 | C114: 0 | D114: 3,000 | E114: 0
A115: PROMOCIO EXTERNA RECOLLIDA PORTA A PORTA | B115: 1,000 | C115: 0 | D115: 1,000 | E115: 0
A116: QUOTES SEGURETAT SOCIAL MEDIA AMBIENT | B116: 21,695 | C116: 0 | D116: 21,695 | E116: 0
A117: 22. Altres prestracions econòmiques a favor empleats | B117: 16,000 | C117: 0 | D117: 10,700 | E117: 0
A118: 221. Altres prestracions econòmiques a favor empleats | B118: 16,000 | C118: 0 | D118: 10,700 | E118: 0
A119: ASSISTÈNCIA MEDICOFARMACÈUTICA FUNCIONARIS | B119: 16,000 | C119: 0 | D119: 10,700 | E119: 0
A120: 23. Serveis socials i promoció social | B120: 885,164 | C120: 0 | D120: 921,764 | E120: 0
A121: 231. Assistència social i primària | B121: 885,164 | C121: 0 | D121: 921,764 | E121: 0
A122: AJUTS SOCIALS | B122: 32,500 | C122: 0 | D122: 32,500 | E122: 0
A123: AJUTS SOCIALS HABITATGES | B123: 47,000 | C123: 0 | D123: 67,500 | E123: 0
A124: CONSELL COMARCAL CONVENI S.A.D. | B124: 25,829 | C124: 0 | D124: 25,829 | E124: 0
A125: CONSUM GAS EDIFICI CR ANSELM CLAVE | B125: 7,500 | C125: 0 | D125: 5,000 | E125: 0
A126: CONSUM LLUM EDIFICI CR ANSELM CLAVE | B126: 5,300 | C126: 0 | D126: 4,500 | E126: 0
A127: CONTRACTE PRESTACIÓ SERVEIS RESIDÈNCIA AVIS | B127: 500,000 | C127: 0 | D127: 500,000 | E127: 0
A128: CONTRACTE SERVEIS ASSISTENCIALS | B128: 12,000 | C128: 0 | D128: 12,000 | E128: 0
A129: DESPESES PER L' IGUALTAT | B129: 7,000 | C129: 0 | D129: 7,000 | E129: 0
A130: DIETES I DESPESES LOCOMOCIÓ SERVEIS A LA LLAR | B130: 2,000 | C130: 0 | D130: 4,000 | E130: 0
A131: FONS SOLIDARITAT | B131: 3,000 | C131: 0 | D131: 6,000 | E131: 0
A132: PROMOCIÓ SOCIAL i TREBALL COMUNITARI | B132: 7,400 | C132: 0 | D132: 7,400 | E132: 0
A133: QUOTES SEGURETAT SOCIAL SERVEI SOCIALS | B133: 50,855 | C133: 0 | D133: 50,855 | E133: 0
A134: SERVEIS SOCIALS (RETRIBUCIONS PLANTILLA) | B134: 159,880 | C134: 0 | D134: 159,880 | E134: 0
A135: SUBMINISTRAMENT EDIF. CR. A.CLAVÉ | B135: 3,000 | C135: 0 | D135: 500 | E135: 0
A136: SUBVENCIÓ ESPLAI GENT GRAN | B136: 4,700 | C136: 0 | D136: 4,700 | E136: 0
A137: SUBVENCIONS ENTITAS SOCIALS | B137: 17,200 | C137: 0 | D137: 17,200 | E137: 0
A138: CAMPANYES COHESIÓ SOCIAL I INTERGENERACIONAL | C138: 0 | D138: 4,900 | E138: 0
A139: ASSISTÈNCIA DOMICILIÀRIA GENT GRAN | C139: 0 | D139: 12,000 | E139: 0
A140: 24. Foment de l'ocupació | B140: 35,400 | C140: 0 | D140: 50,400 | E140: 0
A141: 241. Foment de l'ocupació | B141: 35,400 | C141: 0 | D141: 50,400 | E141: 0
A142: ACCIONS P.A.O. | B142: 20,000 | C142: 0 | D142: 20,000 | E142: 0
A143: PERSONAL CONTRACTAT PLA ÀREA METROPOLITÀ | B143: 100 | C143: 0 | D143: 100 | E143: 0
A144: PERSONAL CONTRACTAT PLA LOCAL DIPUTACIO | B144: 100 | C144: 0 | D144: 100 | E144: 0
A145: PERSONAL SERVEI OCUPACIO I FOMENT DESENVOL,LOCAL | B145: 100 | C145: 0 | D145: 100 | E145: 0
A146: PROJECTES DE FOMENT A LA PROMOCIÓ ECONÒMICA | B146: 15,000 | C146: 0 | D146: 30,000 | E146: 0
A147: QUOTES SEGURETAT SOCIAL PLANS OCUPACIONALS | B147: 100 | C147: 0 | D147: 100 | E147: 0
A148: 31. Salut | B148: 39,405 | C148: 0 | D148: 39,405 | E148: 0
A149: 311. Protecció de la salubritat pública | B149: 20,500 | C149: 0 | D149: 20,500 | E149: 0
A150: CAMPANYA SOBRE TINENÇA RESPONSBLE D'ANIMALS | B150: 3,000 | C150: 0 | D150: 3,000 | E150: 0
A151: COLÒNIES DE GATS | B151: 4,000 | C151: 0 | D151: 4,000 | E151: 0
A152: CONTROL PLAGUES (D.D.D.,LEGIONEL·LOSI,ETC) | B152: 10,500 | C152: 0 | D152: 10,500 | E152: 0
A153: CONVENI APROPA'T | B153: 2,500 | C153: 0 | D153: 2,500 | E153: 0
A154: RECOLLIDA DE GOSSOS I GATS | B154: 500 | C154: 0 | D154: 500 | E154: 0
A155: 312. Serveis assistencials | B155: 18,905 | C155: 0 | D155: 18,905 | E155: 0
A156: CONTRACTACIÓ SERVEIS CREU ROJA (Serveis Preventius) | B156: 7,785 | C156: 0 | D156: 7,785 | E156: 0
A157: CREU ROJA | B157: 5,000 | C157: 0 | D157: 5,000 | E157: 0
A158: RENTING DESFIBRIL·LADORS | B158: 6,120 | C158: 0 | D158: 6,120 | E158: 0
A159: 32. Educació | B159: 1,292,548 | C159: 0 | D159: 1,317,762 | E159: 0
A160: 320. Administració general de l'educació | B160: 247,978 | C160: 0 | D160: 259,978 | E160: 0
A161: BEQUES AREA D'EDUCACIÓ | B161: 83,000 | C161: 0 | D161: 95,000 | E161: 0
A162: CONVENI AMPA ESCOLA BRESSOL MUNICIPAL | B162: 900 | C162: 0 | D162: 900 | E162: 0
A163: CONVENI AMPA ESCOLA MUNICIPAL DE MÚSICA I DANSA | B163: 900 | C163: 0 | D163: 900 | E163: 0
A164: CONVENI AMPA INSTITUT DE TIANA | B164: 1,500 | C164: 0 | D164: 1,500 | E164: 0
A165: CONVENI AMPA INSTITUT THALASSA | B165: 700 | C165: 0 | D165: 700 | E165: 0
A166: CONVENI AMPA LOLA ANGLADA | B166: 1,500 | C166: 0 | D166: 1,500 | E166: 0
A167: CONVENI AMPA TIZIANA | B167: 1,500 | C167: 0 | D167: 1,500 | E167: 0
A168: DIFUSIÓ I PUBLICITAT EDUCACIÓ | B168: 2,000 | C168: 0 | D168: 2,000 | E168: 0
A169: EDUCACIÓ (RETRIBUCIONS PLANTILLA) | B169: 101,207 | C169: 0 | D169: 101,207 | E169: 0
A170: JOVENTUT (RETRIBUCIONS PLANTILLA) | B170: 22,767 | C170: 0 | D170: 22,767 | E170: 0
A171: QUOTES SEGURETAT SOCIAL EDUCACIÓ | B171: 32,004 | C171: 0 | D171: 32,004 | E171: 0
A172: 327. Foment de la convivència ciutadana | B172: 163,500 | C172: 0 | D172: 163,500 | E172: 0
A173: CONTRACTE PRESTAC. SERVEIS ESCOLA DE MUSICA I DANSA | B173: 160,000 | C173: 0 | D173: 160,000 | E173: 0
A174: DESPESES DE FUNCIONAMENT ESCOLA ADULTS | B174: 3,500 | C174: 0 | D174: 3,500 | E174: 0
A175: 323. Funcionament dels centres d'ensenyament | B175: 836,320 | C175: 0 | D175: 849,534 | E175: 0
A176: CONSUM GAS i COMBUSTIBLE CALEFACCIÓ ENSENYAMENT | B176: 20,000 | C176: 0 | D176: 17,000 | E176: 0
A177: CONSUM LLUM ENSENYAMENT | B177: 46,000 | C177: 0 | D177: 43,000 | E177: 0
A178: EDUCACIO AMBIENTAL A L'ESCOLA | B178: 8,006 | C178: 0 | D178: 8,006 | E178: 0
A179: PRESTACIÓ SERVEIS ESCOLA BRESSOL | B179: 612,289 | C179: 0 | D179: 612,289 | E179: 0
A180: PROJECTES ESCOLARS | B180: 18,500 | C180: 0 | D180: 37,714 | E180: 0
A181: PROMOCIÓ EDUCATIVA | B181: 31,525 | C181: 0 | D181: 31,525 | E181: 0
A182: ESCOLA TIZIANA | B182: 70,000 | C182: 0 | D182: 70,000 | E182: 0
A183: ESCOLA BRESSOL | B183: 30,000 | C183: 0 | D183: 30,000 | E183: 0
A184: 324. Funcionament dels centres d'ensenyament secundari | B184: 32,250 | C184: 0 | D184: 32,250 | E184: 0
A185: FORMACIÓ EN LLENGÜES | B185: 14,250 | C185: 0 | D185: 14,250 | E185: 0
A186: PROJECTE DE DIVERSIFICACIÓ CURRICULAR A SECUNDARIA | B186: 18,000 | C186: 0 | D186: 18,000 | E186: 0
A187: 326. Serveis complementaris d'educació | B187: 12,500 | C187: 0 | D187: 12,500 | E187: 0
A188: CONVENI AJUNTAMENT MONTGAT -FORMACIÓ EN LLENGUES | B188: 0 | C188: 0 | D188: 0 | E188: 0
A189: PROMOCIÓ SOCIAL: APORTACIÓ CONVENI PQPI(educació) | B189: 12,500 | C189: 0 | D189: 12,500 | E189: 0
A190: 33. Cultura | B190: 734,821 | C190: 0 | D190: 820,821 | E190: 0
A191: 330. Administració general de la cultura | B191: 152,770 | C191: 0 | D191: 148,770 | E191: 0
A192: CONSUM GAS CULTURA | B192: 7,500 | C192: 0 | D192: 5,500 | E192: 0
A193: CONSUM LLUM EDIFI. AREA CULTURA | B193: 24,000 | C193: 0 | D193: 22,000 | E193: 0
A194: CULTURA (RETRIBUCIONS PLANTILLA) | B194: 73,387 | C194: 0 | D194: 73,387 | E194: 0
A195: PUBLICITAT I COMUNICACIÓ.-CULTURA | B195: 18,500 | C195: 0 | D195: 18,500 | E195: 0
A196: QUOTES SEGURETAT SOCIAL CULTURA | B196: 29,383 | C196: 0 | D196: 29,383 | E196: 0
A197: 332. Biblioteques i arxius | B197: 212,601 | C197: 0 | D197: 229,601 | E197: 0
A198: BIBLIOTEQUES (RETRIBUCIONS PLANTILLA) | B198: 105,394 | C198: 0 | D198: 105,394 | E198: 0
A199: DESPESES BIBLIOTECA (CONVENI DIPUTACIÓ) | B199: 22,800 | C199: 0 | D199: 22,800 | E199: 0
A200: QUOTES SEGURETAT SOCIAL BIBLIOTEQUES | B200: 34,407 | C200: 0 | D200: 34,407 | E200: 0
A201: BIBLIOTECA | B201: 50,000 | C201: 0 | D201: 50,000 | E201: 0
A202: PLA LECTOR MUNICIPAL | C202: 0 | D202: 7,000 | E202: 0
A203: RECUPERACIÓ DE LA MEMÒRIA HISTÒRICA | C203: 0 | D203: 10,000 | E203: 0
... 117 more rows

Sheet Inversions
A1: GRUP | B1: SUBCON | C1: CAPÍTOL | D1: CONCEPTE | E1: POLÍTIQUES | F1: PROGRAMA | G1: 2016 | H1: 2017 | I1: 2018
A2: 1532 | B2: 69211 | C2: INVERSIONS | D2: CONVERSIÓ ZONA VIANANTS | E2: Habitatge i urbanisme | F2: Vies públiques | G2: 500,000.00 | H2: 0.00 | I2: 0.00
A3: 1532 | B3: 61900 | C3: INVERSIONS | D3: ARRANJAMENT CARRERS | E3: Habitatge i urbanisme | F3: Vies públiques | G3: 130,000.00 | H3: 0.00 | I3: 0.00
A4: 1532 | B4: 61902 | C4: INVERSIONS | D4: CONTRUCCIÓ CARRIL-BICI | E4: Habitatge i urbanisme | F4: Vies públiques | G4: 120,000.00 | H4: 0.00 | I4: 0.00
A5: 3230 | B5: 63200 | C5: INVERSIONS | D5: OBRES ADEQUACIÓ EDIFICIS ESCOLARS S/CONVENI | E5: Educació | F5: Funcionament dels centres d'ensenyament | G5: 80,000.00 | H5: 0.00 | I5: 0.00
A6: 1532 | B6: 61904 | C6: INVERSIONS | D6: REPARACIÓ I MILLORA CAMÍ DEL CEMENTIRI | E6: Habitatge i urbanisme | F6: Vies públiques | G6: 60,300.00 | H6: 0.00 | I6: 0.00
A7: 1532 | B7: 61903 | C7: INVERSIONS | D7: ARRANJAMENT PETANC, PARC ESPORTIU I ALTRES | E7: Habitatge i urbanisme | F7: Vies públiques | G7: 60,000.00 | H7: 0.00 | I7: 0.00
A8: 1532 | B8: 61901 | C8: INVERSIONS | D8: ASFALTAT CARRERS | E8: Habitatge i urbanisme | F8: Vies públiques | G8: 50,000.00 | H8: 0.00 | I8: 0.00
A9: 1330 | B9: 63300 | C9: INVERSIONS | D9: INSTAL·LACIÓ GRUP SEMAFÒRIC | E9: Seguretat i mobilitat | F9: Ordenació del trànsit i l'estacionament | G9: 44,000.00 | H9: 0.00 | I9: 0.00
A10: 1500 | B10: 64000 | C10: INVERSIONS | D10: REDACCIÓ PROJECTES TÈCNICS | E10: Habitatge i urbanisme | F10: Administració general de l'habitatge i urbanisme | G10: 40,000.00 | H10: 0.00 | I10: 0.00
A11: 1532 | B11: 63100 | C11: INVERSIONS | D11: ADEQUACIÓ ESPAI ESGLÈSIA | E11: Habitatge i urbanisme | F11: Vies públiques | G11: 23,000.00 | H11: 0.00 | I11: 0.00
A12: 1710 | B12: 61900 | C12: INVERSIONS | D12: MILLORA PARCS INFANTILS | E12: Benestar comunitari | F12: Parcs i jardins | G12: 20,000.00 | H12: 0.00 | I12: 0.00
A13: 3340 | B13: 63200 | C13: INVERSIONS | D13: ADEQUACIÓ LOCAL DESTINAT P.I.J. | E13: Cultura | F13: Promoció cultural | G13: 15,000.00 | H13: 0.00 | I13: 0.00
A14: 9200 | B14: 62500 | C14: INVERSIONS | D14: MOBILIARI SERVEIS GENERALS | E14: Serveis de caràcter general | F14: Administració general dels serveis de caràcter general | G14: 15,000.00 | H14: 0.00 | I14: 0.00
A15: 1522 | B15: 63200 | C15: INVERSIONS | D15: REHABILITACIÓ I ADEQUACIÓ EDIFICIS MUNICIPALS | E15: Habitatge i urbanisme | F15: Habitatge | G15: 0.00 | H15: 70,450.00 | I15: 0.00
A16: 1522 | B16: 63210 | C16: INVERSIONS | D16: ARRANJAMENT NAU MASCARÒ | E16: Habitatge i urbanisme | F16: Habitatge | G16: 0.00 | H16: 36,250.00 | I16: 0.00
A17: 1531 | B17: 69210 | C17: INVERSIONS | D17: CONVERSIÓ ZONA VIANANTS DEL CENTRE FASE | E17: Habitatge i urbanisme | F17: Vies públiques | G17: 0.00 | H17: 96,000.00 | I17: 0.00
A18: 1532 | B18: 69200 | C18: INVERSIONS | D18: URBANITZACIÓ ACCÉS ESGLÈSIA | E18: Habitatge i urbanisme | F18: Vies públiques | G18: 0.00 | H18: 26,000.00 | I18: 0.00
A19: 1650 | B19: 63900 | C19: INVERSIONS | D19: MILLORA ENLLUMENAT PÚBLIC | E19: Benestar comunitari | F19: Enllumenat públic | G19: 0.00 | H19: 30,000.00 | I19: 0.00
A20: 1710 | B20: 61900 | C20: INVERSIONS | D20: MILLORA PARCS INFANTILS | E20: Benestar comunitari | F20: Parcs i jardins | G20: 0.00 | H20: 30,000.00 | I20: 0.00
A21: 1721 | B21: 62300 | C21: INVERSIONS | D21: DIPÓSIT CAN BOTER | E21: Benestar comunitari | F21: Protecció i millora del medi ambient | G21: 0.00 | H21: 8,000.00 | I21: 0.00
A22: 3230 | B22: 63200 | C22: INVERSIONS | D22: MILLORA EQUIPAMENTS EDUCATIUS | E22: Educació | F22: Funcionament dels centres d'ensenyament | G22: 0.00 | H22: 30,200.00 | I22: 0.00
A23: 3321 | B23: 63200 | C23: INVERSIONS | D23: REFORMA BIBLIOTECA MUNICIPAL | E23: Cultura | F23: Biblioteques i arxius | G23: 0.00 | H23: 30,000.00 | I23: 0.00
A24: 3330 | B24: 63210 | C24: INVERSIONS | D24: MUSEU A CEL OBERT | E24: Cultura | F24: Equipaments culturals i museus | G24: 0.00 | H24: 10,000.00 | I24: 0.00
A25: 3420 | B25: 63900 | C25: INVERSIONS | D25: MILLORA EQUIPAMENTS ESPORTIUS | E25: Esport | F25: Instal·lacions esportives | G25: 0.00 | H25: 57,500.00 | I25: 0.00
A26: 9200 | B26: 62500 | C26: INVERSIONS | D26: MOBILIARI SERVEIS GENERALS | E26: Serveis de caràcter general | F26: Administració general dels serveis de caràcter general | G26: 0.00 | H26: 11,000.00 | I26: 0.00
A27: 9201 | B27: 64100 | C27: INVERSIONS | D27: ADQUISICIÓ SOFTWARE I LLICÈNCIES | E27: Serveis de caràcter general | F27: Administració general dels serveis de caràcter general | G27: 0.00 | H27: 20,200.00 | I27: 0.00
A28: 3330 | B28: 63200 | C28: INVERSIONS | D28: REFORMES I ADEQUACIONS EQUPIAMENTS | E28: Cultura | F28: Equipaments culturals i museus | G28: 0.00 | H28: 0.00 | I28: 230,000.00
A29: 1500 | B29: 65000 | C29: INVERSIONS | D29: REDACCIÓ PROJECTES | E29: Habitatge i urbanisme | F29: Habitatge | G29: 0.00 | H29: 0.00 | I29: 35,000.00
A30: 1550 | B30: 69200 | C30: INVERSIONS | D30: ACTUACIONS VIA PÚBLICA | E30: Habitatge i urbanisme | F30: Vies públiques | G30: 0.00 | H30: 0.00 | I30: 402,000.00
A31: 1710 | B31: 61903 | C31: INVERSIONS | D31: CONDICIONAMENT DE PARCS | E31: Habitatge i urbanisme | F31: Vies públiques | G31: 0.00 | H31: 0.00 | I31: 75,000.00
A32: 1550 | B32: 62300 | C32: INVERSIONS | D32: MOBILITAT | E32: Habitatge i urbanisme | F32: Vies públiques | G32: 0.00 | H32: 0.00 | I32: 125,000.00
A33: 1640 | B33: 62300 | C33: INVERSIONS | D33: CEMENTIRI | E33: Benestar comunitari | F33: Cementiri i serveis funeraris | G33: 0.00 | H33: 0.00 | I33: 20,000.00
A34: 1550 | B34: 61903 | C34: INVERSIONS | D34: CARRIL BICI / RIERA DE TIANA | E34: Habitatge i urbanisme | F34: Vies públiques | G34: 0.00 | H34: 0.00 | I34: 107,000.00
A35: 1650 | B35: 62300 | C35: INVERSIONS | D35: TREBALLS VARIS ENLLUMENAT | E35: Benestar comunitari | F35: Enllumenat públic | G35: 0.00 | H35: 0.00 | I35: 60,000.00
A36: 1330 | B36: 63300 | C36: INVERSIONS | D36: SUPORT CÀMERES SEGURETAT | E36: Seguretat i mobilitat | F36: Seguretat i ordre públic | G36: 0.00 | H36: 0.00 | I36: 40,000.00
